Workbook

Sheet Introduktion

Sheet Konfiguration
A1: Valg | B1: Indtastning | C1: Kommentarer
A2: Hustype | B2: 2-plan
A3: Tagtype | B3: Sadeltag
A4: Brutto areal | B4: 135
A5: Netto areal | B5: 115
A6: Loftshøjde | B6: 2.95
A7: Antal værelser | B7: 6
A8: Antal wc-rum uden bad | B8: 0
A9: Antal bade- og wc-rum | B9: 1
A10: Antal depot/bryggers/viktualierum | B10: 1
A11: Antal køkkener | B11: 1
A12: Køkkenalrum | B12: Ja

Sheet Input
A2: Ventilation | G2: Bolig information
B4: Ækvivalent længde af Ø125mm ventilationskanal | E4: =Beregninger!G33 -> 50.67200284 | F4: m | H4: Hustype | K4: =Konfiguration!B2 -> 2-plan
B5: Ækvivalent materialemængde af Ø125mm ventilationskanal | E5: =Beregninger!G34 -> 74.68792998 | F5: kg | H5: Tagtype | K5: =Konfiguration!B3 -> Sadeltag
H6: Rumfang | K6: =Konfiguration!B5*Konfiguration!B6 -> 339.25 | L6: m3
A7: Yderligere information vedr. ventilation | H7: Antal værelser | K7: =Konfiguration!B7 -> 6 | L7: stk
H8: Antal wc-rum uden bad | K8: =Konfiguration!B8 -> 0 | L8: stk
B9: Antal udsugningsarmaturer | E9: =Beregninger!L9 -> 3 | F9: stk | H9: Antal bade- og wc-rum | K9: =Konfiguration!B9 -> 1 | L9: stk
B10: Antal indblæsningsarmaturer | E10: =Beregninger!L10 -> 7 | F10: stk | H10: Antal depoter/bryggers/viktualierum | K10: =Konfiguration!B10 -> 1 | L10: stk
B11: Antal aggregater | E11: =Beregninger!L11 -> 1 | F11: stk | H11: Antal køkkener | K11: =Konfiguration!B11 -> 1 | L11: stk
H12: Brutto areal | K12: =Konfiguration!B4 -> 135 | L12: m2
B13: Basis ventilation | E13: =Beregninger!G9 -> 145.8 | F13: m3/h | H13: Netto areal | K13: =Konfiguration!B5 -> 115 | L13: m2
B14: Forceret ventilation | E14: =Beregninger!G10 -> 162 | F14: m3/h | H14: Loftshøjde | K14: =Konfiguration!B6 -> 2.95 | L14: m
B15: Basis luftskifte | E15: =Beregninger!G11 -> 0.4297715549 | F15: h-1
B16: Forceret luftskifte | E16: =Beregninger!G12 -> 0.4775239499 | F16: h-1

Sheet Beregninger (hidden)
C6: Luftmængder, luftskifte og armaturer
C9: Basis ventilation | G9: =Input!K12*0.3*3.6 -> 145.8 | H9: m3/h | J9: Antal udsugningsarmaturer | L9: =IF(Input!K10>2,Input!K8+Input!K9+Input!K10+Input!K11-1,Input!K8+Input!K9+Input!K10+Input!K11) -> 3
C10: Forceret ventilation | G10: =(MAX(G9,Input!K11*72+Input!K9*54+Input!K10*36+Input!K8*36)) -> 162 | H10: m3/h | J10: Antal indblæsningsarmaturer | L10: =IF(Konfiguration!B12="Ja",Input!K7+1,Input!K7) -> 7
C11: Basis luftskifte | G11: =Input!E13/Input!K6 -> 0.4297715549 | H11: h-1 | J11: Antal aggregater | L11: =IF(Konfiguration!B4*0.3*3.6<MAX(('Data fra producenter'!AT38:'Data fra producenter'!AE36)),1,IF(Konfiguration!B4<'Data fra producenter'!AT38,1,ROUND((Konfiguration!B4/'Data fra producenter'!AT38)+0.25,0))) -> 1
C12: Forceret luftskifte | G12: =(MAX(G11,Input!E14/Input!K6)) -> 0.4775239499 | H12: h-1
C15: Kanallængder og -mængder
C18: Kanaldimensioner | E18: øD [mm] | F18: 100 | G18: 125 | H18: 160
C19: Procentvis længder | F19: =IF((Input!K8+Input!K9+Input!K10)>3,9.45,8.45) -> 8.45 | G19: =100-(F19+H19) -> 83.41 | H19: =IF(G9<(0.034*3600),7.14,8.14) -> 8.14
C21: Længde af ventilationskanal | G21: =Regression!O23 -> 40.745295 | H21: m
C22: Ækvivalent mængde af ventilationskanal | G22: =((((F19/100)*G21)*Ventilation!G7)*Ventilation!H7)+(((G19/100)*G21)*Ventilation!G8)+((((H19/100)*G21)*Ventilation!G9)*Ventilation!H9) -> 60.69127193 | H22: kg
C23: Ækvivalent længde af ventilationskanal | G23: =Beregninger!G22/Ventilation!G8 -> 43.04345527 | H23: m
C25: Antal af bøjninger | G25: =Regression!T23 -> 21.250202 | H25: stk
C26: Ækvivalent mængde af bøjninger | G26: =((((F19/100)*G25)*Ventilation!N7)*Ventilation!O7)+(((G19/100)*G25)*Ventilation!N8)+((((H19/100)*G25)*Ventilation!N9)*Ventilation!O9) -> 13.99665805 | H26: kg
C27: Ækvivalent længde af ventilationskanal | G27: =G26/Ventilation!G8 -> 9.926707836 | H27: m
C29: Længde af emhættekanal | G29: =IF(Input!K4="2-plan",'Data fra producenter'!AT32,'Data fra producenter'!AT31) -> 1.35 | H29: m
C30: Ækvivalænt mængde af emhættekanal | G30: =(G29*Ventilation!G8)*Ventilation!H9 -> 2.727 | H30: kg
C31: Ækvivalent længde af emhættekanal | G31: =G30/Ventilation!G8 -> 1.934042553 | H31: m
C33: Samlet ækvivalent kanallængde | G33: =G21+G27 -> 50.67200284 | H33: m
C34: Samlet ækvivalent kanalmængde | G34: =G22+G26 -> 74.68792998 | H34: kg

Sheet Ventilation (hidden)
B2: Mateialedata på kanal. | L2: Materialedata på bøjninger og samlinger.
C5: Rør - Lindab | M5: Bøjninger - Air2Trust
C6: Ød [mm] | D6: Omkr. [m] | E6: Areal [m2] | F6: t [mm] | G6: vægt [kg/m] | H6: Forhold | M6: Ød [mm] | N6: vægt [kg] | O6: Forhold
C7: 100 | D7: 0.314 | E7: 0.008 | F7: 0.45 | G7: 1.14 | H7: =G7/G8 -> 0.8085106383 | M7: 100 | N7: 0.4 | O7: =N7/N8 -> 0.6666666667
C8: 125 | D8: 0.393 | E8: 0.012 | F8: 0.45 | G8: 1.41 | H8: =G8/G8 -> 1 | M8: 125 | N8: 0.6 | O8: =N8/N8 -> 1
C9: 160 | D9: 0.503 | E9: 0.02 | F9: 0.5 | G9: 2.02 | H9: =G9/G8 -> 1.432624113 | M9: 160 | N9: 1 | O9: =N9/N8 -> 1.666666667
M12: Samlinger / Nippel - Lindab | P12: Samlinger / Muffe - Lindab
M13: Ød [mm] | N13: vægt [kg] | P13: Ød [mm] | Q13: vægt [kg]
M14: 100 | N14: 0.12 | P14: 100 | Q14: 0.1
M15: 125 | N15: 0.15 | P15: 125 | Q15: 0.14
M16: 160 | N16: 0.19 | P16: 160 | Q16: 0.21

Sheet Gulvvarme (hidden)
B2: Materialedata på gulvvarmerør
C4: Gulvvarmerør - Uponor/Wirsbo
C5: Ød [mm] | D5: t [mm] | E5: Areal [mm2] | F5: Rørtype | G5: Centerafstand [mm] | H5: Max kredslængde [m] | I5: Rørforbrug [m/m2] | J5: kg/m
C6: 12 | D6: 1.7 | E6: =(C6-(2*D6))*PI() -> 27.01769682 | F6: evalPEX | G6: 125 | H6: 70 | I6: 8.2 | J6: 0.068
C7: 15 | D7: 2.5 | E7: =(C7-(2*D7))*PI() -> 31.41592654 | F7: evalPEX | G7: 200 | H7: 75 | I7: 5 | J7: 0.094
C8: 16 | D8: 2 | E8: 37.69911184 | F8: Unipipe | G8: 250 | H8: 80 | I8: 4 | J8: 0.085
C9: 17 | D9: 2 | E9: 40.8407045 | F9: pePEX | G9: 200 | H9: 80 | I9: 5 | J9: =11.3/100 -> 0.113
C10: 20 | D10: 2 | E10: 50.26548246 | F10: pePEX | G10: 300 | H10: 120 | I10: 3.3 | J10: =11.7/100 -> 0.117
C11: 20 | D11: 2 | E11: 50.26548246 | F11: pePEX | G11: 300 | H11: 120 | I11: 3.3 | J11: =11.7/100 -> 0.117

Sheet Data fra producenter (hidden)
B2: Huse | C2: Producent | D2: Type | E2: Tag | F2: Type-værdi | G2: Tag-værdi | H2: Antal værelser | I2: Brutto | J2: Netto | K2: B/N | L2: Kanallængde pr. kvdm | M2: Højde | N2: Samlet kanallængde [m | O2: Antal bøjninger | P2: Køkkenalrum | Q2: Gulvvarme - c.afstand | R2: Gulvvarme længde | S2: Gulvvarme m/m2 | T2: Gulvvarme kg | U2: Gulvvarme kg/m2 | V2: Gulvvarme m2 | W2: Gulvvarme m2/m2 | X2: Gulvvarme antal kredse | Y2: Indblæsning | Z2: Udsugning | AA2: Emhætte | AB2: Emhætte - kanallængde | AC2: Kanal - Ind | AD2: Kanal - Ud | AE2: Kanal - Indtag/afkast | AF2: Aggregat | AG2: Aggregat - placering | AH2: Aggregat - luftmin | AI2: Aggregat - luftmax | AJ2: kvmd/værelse forhold | AM2: Værdier fra producenter (Skal udbygges med mere data for at blive mere retvisende) | AQ2: Gulvarme
B3: Bygning 2 | C3: pro_13 | D3: 1 plans | E3: Ensidig hældning | F3: =IF(Table1[[#This Row],[Type]]="1 plans",1,IF(Table1[[#This Row],[Type]]="2 plans",2,0)) -> 1 | G3: =IF(Table1[[#This Row],[Tag]]="Ensidig hældning",2,IF(Table1[[#This Row],[Tag]]="Fladt",3,IF(Table1[[#This Row],[Tag]]="Sadel",1,0))) -> 2 | H3: 6 | I3: 166 | J3: 135.3 | K3: =IF(Table1[[#This Row],[Netto]]=" "," ",Table1[[#This Row],[Brutto]]/Table1[[#This Row],[Netto]]) -> 1.226903178 | L3: =(AC3+AD3+Table1[[#This Row],[Kanal - Indtag/afkast]])/I3 -> 0.2771084337 | M3: 2.75 | N3: =Table1[[#This Row],[Emhætte - kanallængde]]+Table1[[#This Row],[Kanal - Ind]]+Table1[[#This Row],[Kanal - Ud]]+Table1[[#This Row],[Kanal - Indtag/afkast]] -> 48.25 | O3: 18 | P3: Ja | S3: =Table1[[#This Row],[Gulvvarme længde]]/Table1[[#This Row],[Netto]] -> 0 | T3: =IF(Table1[[#This Row],[Gulvvarme - c.afstand]]=200,(Table1[[#This Row],[Gulvvarme længde]]*Gulvvarme!J$9),IF(Table1[[#This Row],[Gulvvarme - c.afstand]]=250,Table1[[#This Row],[Gulvvarme længde]]*Gulvvarme!J$8,Table1[[#This Row],[Gulvvarme længde]]*Gulvvarme!J$10)) -> 0 | U3: =Table1[[#This Row],[Gulvvarme kg]]/Table1[[#This Row],[Netto]] -> 0 | V3: =IF(Table1[[#This Row],[Gulvvarme - c.afstand]]=250,Table1[[#This Row],[Gulvvarme længde]]/Gulvvarme!I$8,IF(Table1[[#This Row],[Gulvvarme - c.afstand]]=300,Table1[[#This Row],[Gulvvarme længde]]/Gulvvarme!I$10,"")) ->  | W3: =Table1[[#This Row],[Gulvvarme m2]]/Table1[[#This Row],[Netto]] ->  | Y3: 5 | Z3: 4 | AA3: 1 | AB3: 2.25 | AC3: 22.5 | AD3: 16 | AE3: 7.5 | AF3: Danfoss Air W2 | AG3: Væg | AH3: 50 | AI3: 300 | AJ3: =J3/H3 -> 22.55
B4: Bygning 6 | C4: pro_13 | D4: 1 plans | E4: Ensidig hældning | F4: =IF(Table1[[#This Row],[Type]]="1 plans",1,IF(Table1[[#This Row],[Type]]="2 plans",2,0)) -> 1 | G4: =IF(Table1[[#This Row],[Tag]]="Ensidig hældning",2,IF(Table1[[#This Row],[Tag]]="Fladt",3,IF(Table1[[#This Row],[Tag]]="Sadel",1,0))) -> 2 | H4: 7 | I4: 168 | J4: 150.9 | K4: =IF(Table1[[#This Row],[Netto]]=" "," ",Table1[[#This Row],[Brutto]]/Table1[[#This Row],[Netto]]) -> 1.11332008 | L4: =(AC4+AD4+Table1[[#This Row],[Kanal - Indtag/afkast]])/I4 -> 0.2797619048 | M4: 3.5 | N4: =Table1[[#This Row],[Emhætte - kanallængde]]+Table1[[#This Row],[Kanal - Ind]]+Table1[[#This Row],[Kanal - Ud]]+Table1[[#This Row],[Kanal - Indtag/afkast]] -> 49.75 | O4: 23 | P4: Ja | S4: =Table1[[#This Row],[Gulvvarme længde]]/Table1[[#This Row],[Netto]] -> 0 | T4: =IF(Table1[[#This Row],[Gulvvarme - c.afstand]]=200,(Table1[[#This Row],[Gulvvarme længde]]*Gulvvarme!J$9),IF(Table1[[#This Row],[Gulvvarme - c.afstand]]=250,Table1[[#This Row],[Gulvvarme længde]]*Gulvvarme!J$8,Table1[[#This Row],[Gulvvarme længde]]*Gulvvarme!J$10)) -> 0 | U4: =Table1[[#This Row],[Gulvvarme kg]]/Table1[[#This Row],[Netto]] -> 0 | V4: =IF(Table1[[#This Row],[Gulvvarme - c.afstand]]=250,Table1[[#This Row],[Gulvvarme længde]]/Gulvvarme!I$8,IF(Table1[[#This Row],[Gulvvarme - c.afstand]]=300,Table1[[#This Row],[Gulvvarme længde]]/Gulvvarme!I$10,"")) ->  | W4: =Table1[[#This Row],[Gulvvarme m2]]/Table1[[#This Row],[Netto]] ->  | Y4: 6 | Z4: 4 | AA4: 1 | AB4: 2.75 | AC4: 25 | AD4: 16 | AE4: 6 | AF4: Dantherm HCV400P2 | AG4: Skab | AH4: 70 | AI4: 290 | AJ4: 21.55714286
B5: Bygning 7 | C5: pro_14 | D5: 1 plans | E5: Ensidig hældning | F5: =IF(Table1[[#This Row],[Type]]="1 plans",1,IF(Table1[[#This Row],[Type]]="2 plans",2,0)) -> 1 | G5: =IF(Table1[[#This Row],[Tag]]="Ensidig hældning",2,IF(Table1[[#This Row],[Tag]]="Fladt",3,IF(Table1[[#This Row],[Tag]]="Sadel",1,0))) -> 2 | H5: 6 | I5: 182.4 | J5: 151.9 | K5: =IF(Table1[[#This Row],[Netto]]=" "," ",Table1[[#This Row],[Brutto]]/Table1[[#This Row],[Netto]]) -> 1.200789993 | L5: =(AC5+AD5+Table1[[#This Row],[Kanal - Indtag/afkast]])/I5 -> 0.34375 | M5: 2.75 | N5: =Table1[[#This Row],[Emhætte - kanallængde]]+Table1[[#This Row],[Kanal - Ind]]+Table1[[#This Row],[Kanal - Ud]]+Table1[[#This Row],[Kanal - Indtag/afkast]] -> 65.3 | O5: 22 | P5: Ja | R5: =(36+55+44+87+95+43+60) -> 420 | S5: =Table1[[#This Row],[Gulvvarme længde]]/Table1[[#This Row],[Netto]] -> 2.764976959 | T5: =IF(Table1[[#This Row],[Gulvvarme - c.afstand]]=200,(Table1[[#This Row],[Gulvvarme længde]]*Gulvvarme!J$9),IF(Table1[[#This Row],[Gulvvarme - c.afstand]]=250,Table1[[#This Row],[Gulvvarme længde]]*Gulvvarme!J$8,Table1[[#This Row],[Gulvvarme længde]]*Gulvvarme!J$10)) -> 49.14 | U5: =Table1[[#This Row],[Gulvvarme kg]]/Table1[[#This Row],[Netto]] -> 0.3235023041 | V5: =IF(Table1[[#This Row],[Gulvvarme - c.afstand]]=250,Table1[[#This Row],[Gulvvarme længde]]/Gulvvarme!I$8,IF(Table1[[#This Row],[Gulvvarme - c.afstand]]=300,Table1[[#This Row],[Gulvvarme længde]]/Gulvvarme!I$10,"")) ->  | W5: =Table1[[#This Row],[Gulvvarme m2]]/Table1[[#This Row],[Netto]] ->  | Y5: 6 | Z5: 6 | AA5: 1 | AB5: 2.6 | AC5: 25 | AD5: 32 | AE5: 5.7 | AF5: Nilan CT300LR | AG5: Skab | AH5: 100 | AI5: 400 | AJ5: 25.31666667 | AQ5: Gennemsnit - m/m2 | AR5: =AVERAGE(Table1[Gulvvarme m/m2]) -> 2.319966871 | AT5: Gennemsnit - kg | AU5: =AVERAGE(Table1[Gulvvarme kg]) -> 32.36833333
B6: Type 1 - Bygning 2 | C6: pro_12 | D6: 1 plans | E6: Fladt | F6: =IF(Table1[[#This Row],[Type]]="1 plans",1,IF(Table1[[#This Row],[Type]]="2 plans",2,0)) -> 1 | G6: =IF(Table1[[#This Row],[Tag]]="Ensidig hældning",2,IF(Table1[[#This Row],[Tag]]="Fladt",3,IF(Table1[[#This Row],[Tag]]="Sadel",1,0))) -> 3 | H6: 6 | I6: 170 | J6: =7.7+10+8.1+10+11.9+5.6+37.9+2.8+24.1+7.5+12.1+3.4 -> 141.1 | K6: =IF(Table1[[#This Row],[Netto]]=" "," ",Table1[[#This Row],[Brutto]]/Table1[[#This Row],[Netto]]) -> 1.204819277 | L6: =(AC6+AD6+Table1[[#This Row],[Kanal - Indtag/afkast]])/I6 -> 0.3558823529 | M6: =((37.9/J6)*3+(1-(37.9/J6))*2.5) -> 2.634301914 | N6: =Table1[[#This Row],[Emhætte - kanallængde]]+Table1[[#This Row],[Kanal - Ind]]+Table1[[#This Row],[Kanal - Ud]]+Table1[[#This Row],[Kanal - Indtag/afkast]] -> 60.5 | O6: 23 | P6: Ja | Q6: 300 | R6: =28.7+43.3+45.3+36.3+33.3+109.3+70.3+60+83+79+27.7+47.7+31 -> 694.9 | S6: =Table1[[#This Row],[Gulvvarme længde]]/Table1[[#This Row],[Netto]] -> 4.924875974 | T6: =IF(Table1[[#This Row],[Gulvvarme - c.afstand]]=200,(Table1[[#This Row],[Gulvvarme længde]]*Gulvvarme!J$9),IF(Table1[[#This Row],[Gulvvarme - c.afstand]]=250,Table1[[#This Row],[Gulvvarme længde]]*Gulvvarme!J$8,Table1[[#This Row],[Gulvvarme længde]]*Gulvvarme!J$10)) -> 81.3033 | U6: =Table1[[#This Row],[Gulvvarme kg]]/Table1[[#This Row],[Netto]] -> 0.576210489 | V6: =IF(Table1[[#This Row],[Gulvvarme - c.afstand]]=250,Table1[[#This Row],[Gulvvarme længde]]/Gulvvarme!I$8,IF(Table1[[#This Row],[Gulvvarme - c.afstand]]=300,Table1[[#This Row],[Gulvvarme længde]]/Gulvvarme!I$10,"")) -> 210.5757576 | W6: =Table1[[#This Row],[Gulvvarme m2]]/Table1[[#This Row],[Netto]] -> 1.492386659 | X6: 13 | Y6: 6 | Z6: 4 | AA6: 0 | AB6: 0 | AC6: =((4335-1570)+(1170)+(3800-780)+(780)+(780)+(580)+((12120+8270)-(1250+435)))/1000 -> 27.8 | AD6: =((3030+1210)+900+450+450+225+12100+(1125+2000+2500)+(2000+3000+1210))/1000 -> 30.2 | AE6: 2.5 | AF6: Nilan CT300 | AG6: Skab | AH6: 100 | AI6: 400 | AJ6: 23.51666667 | AM6: pro_12 - gennemsnit | AN6: =AVERAGEIF(Table1[Producent], "pro_12",Table1[Kanallængde pr. kvdm]) -> 0.3199286522 | AQ6: pro_12 - gennemsnit | AR6: =AVERAGEIF(Table1[Producent], "pro_12",Table1[Gulvvarme m/m2]) -> 5.05831941 | AT6: pro_12 - gennemsnit | AU6: =AVERAGEIF(Table1[Producent], "pro_12",Table1[Gulvvarme kg]) -> 82.29
B7: Type 2 - Bygning 4 | C7: pro_12 | D7: 1 plans | E7: Fladt | F7: =IF(Table1[[#This Row],[Type]]="1 plans",1,IF(Table1[[#This Row],[Type]]="2 plans",2,0)) -> 1 | G7: =IF(Table1[[#This Row],[Tag]]="Ensidig hældning",2,IF(Table1[[#This Row],[Tag]]="Fladt",3,IF(Table1[[#This Row],[Tag]]="Sadel",1,0))) -> 3 | H7: 6 | I7: 150 | J7: =6.6+13.5+21.5+33.1+8+2.1+10.1+10+7.7+5.3+7.7 -> 125.6 | K7: =IF(Table1[[#This Row],[Netto]]=" "," ",Table1[[#This Row],[Brutto]]/Table1[[#This Row],[Netto]]) -> 1.194267516 | L7: =(AC7+AD7+Table1[[#This Row],[Kanal - Indtag/afkast]])/I7 -> 0.3061333333 | M7: 2.55 | N7: =Table1[[#This Row],[Emhætte - kanallængde]]+Table1[[#This Row],[Kanal - Ind]]+Table1[[#This Row],[Kanal - Ud]]+Table1[[#This Row],[Kanal - Indtag/afkast]] -> 45.92 | O7: =6+10+7 -> 23 | P7: Ja | Q7: 300 | R7: =36+40+25+55+55+70+85+75+120+20+45+30 -> 656 | S7: =Table1[[#This Row],[Gulvvarme længde]]/Table1[[#This Row],[Netto]] -> 5.222929936 | T7: =IF(Table1[[#This Row],[Gulvvarme - c.afstand]]=200,(Table1[[#This Row],[Gulvvarme længde]]*Gulvvarme!J$9),IF(Table1[[#This Row],[Gulvvarme - c.afstand]]=250,Table1[[#This Row],[Gulvvarme længde]]*Gulvvarme!J$8,Table1[[#This Row],[Gulvvarme længde]]*Gulvvarme!J$10)) -> 76.752 | U7: =Table1[[#This Row],[Gulvvarme kg]]/Table1[[#This Row],[Netto]] -> 0.6110828025 | V7: =IF(Table1[[#This Row],[Gulvvarme - c.afstand]]=250,Table1[[#This Row],[Gulvvarme længde]]/Gulvvarme!I$8,IF(Table1[[#This Row],[Gulvvarme - c.afstand]]=300,Table1[[#This Row],[Gulvvarme længde]]/Gulvvarme!I$10,"")) -> 198.7878788 | W7: =Table1[[#This Row],[Gulvvarme m2]]/Table1[[#This Row],[Netto]] -> 1.582706041 | X7: 12 | Y7: 6 | Z7: 4 | AA7: 0 | AB7: 0 | AC7: =((6500+2500+500)+900+300+300+300+(5710-900-1500)+900+(600+600+2860+1120)+3080)/1000 -> 23.77 | AD7: =((5650+3550)+2850+900+200+3250+3250)/1000 -> 19.65 | AE7: 2.5 | AF7: Nilan CT300LR | AG7: Loft | AH7: 100 | AI7: 400 | AJ7: 20.93333333 | AM7: pro_11 - gennemsnit | AN7: =AVERAGEIF(Table1[Producent], "pro_11",Table1[Kanallængde pr. kvdm]) -> 0.347946308 | AQ7: pro_11 - gennemsnit | AR7: =AVERAGEIF(Table1[Producent], "pro_11",Table1[Gulvvarme m/m2]) -> 4.34977404 | AT7: pro_11 - gennemsnit | AU7: =AVERAGEIF(Table1[Producent], "pro_11",Table1[Gulvvarme kg]) -> 34.2125
B8: Type 3 - Bygning 5 | C8: pro_12 | D8: 1 plans | E8: Fladt | F8: =IF(Table1[[#This Row],[Type]]="1 plans",1,IF(Table1[[#This Row],[Type]]="2 plans",2,0)) -> 1 | G8: =IF(Table1[[#This Row],[Tag]]="Ensidig hældning",2,IF(Table1[[#This Row],[Tag]]="Fladt",3,IF(Table1[[#This Row],[Tag]]="Sadel",1,0))) -> 3 | H8: 6 | I8: 185 | J8: =8.6+11+11+6.5+7.9+4.5+11+3.5+38.9+23.3+10.2+7.9+6.7 -> 151 | K8: =IF(Table1[[#This Row],[Netto]]=" "," ",Table1[[#This Row],[Brutto]]/Table1[[#This Row],[Netto]]) -> 1.225165563 | L8: =(AC8+AD8+Table1[[#This Row],[Kanal - Indtag/afkast]])/I8 -> 0.2977702703 | M8: 2.55 | N8: =Table1[[#This Row],[Emhætte - kanallængde]]+Table1[[#This Row],[Kanal - Ind]]+Table1[[#This Row],[Kanal - Ud]]+Table1[[#This Row],[Kanal - Indtag/afkast]] -> 55.0875 | O8: 22 | P8: Ja | Q8: 300 | R8: =23.7+31.7+40.3+46.7+109.7+83.5+62.3+88.8+100.3+55.7+33+52.7+30.7 -> 759.1 | S8: =Table1[[#This Row],[Gulvvarme længde]]/Table1[[#This Row],[Netto]] -> 5.027152318 | T8: =IF(Table1[[#This Row],[Gulvvarme - c.afstand]]=200,(Table1[[#This Row],[Gulvvarme længde]]*Gulvvarme!J$9),IF(Table1[[#This Row],[Gulvvarme - c.afstand]]=250,Table1[[#This Row],[Gulvvarme længde]]*Gulvvarme!J$8,Table1[[#This Row],[Gulvvarme længde]]*Gulvvarme!J$10)) -> 88.8147 | U8: =Table1[[#This Row],[Gulvvarme kg]]/Table1[[#This Row],[Netto]] -> 0.5881768212 | V8: =IF(Table1[[#This Row],[Gulvvarme - c.afstand]]=250,Table1[[#This Row],[Gulvvarme længde]]/Gulvvarme!I$8,IF(Table1[[#This Row],[Gulvvarme - c.afstand]]=300,Table1[[#This Row],[Gulvvarme længde]]/Gulvvarme!I$10,"")) -> 230.030303 | W8: =Table1[[#This Row],[Gulvvarme m2]]/Table1[[#This Row],[Netto]] -> 1.52337949 | X8: 13 | Y8: 6 | Z8: 5 | AA8: 0 | AB8: 0 | AC8: =((900)+550+550+550+(900+1300+800)+(600+1610+4860)+(800+1920+200+500)+800+200+(3500)+3250)/1000 -> 23.79 | AD8: =((1800)+(17.5*453)+(22*453)+(950)+(8.5*453)+(9.5*453))/1000 -> 28.7975 | AE8: 2.5 | AF8: Nilan CT300LR | AG8: Loft | AH8: 100 | AI8: 400 | AJ8: 25.16666667 | AM8: pro_13 - gennemsnit | AN8: =AVERAGEIF(Table1[Producent], "pro_13",Table1[Kanallængde pr. kvdm]) -> 0.3263588194 | AQ8: 1-plan - gennemsnit | AR8: =AVERAGEIF(Table1[Type], "1 plans",Table1[Gulvvarme m/m2]) -> 2.232089592 | AT8: 1-plan - gennemsnit | AU8: =AVERAGEIF(Table1[Type], "1 plans",Table1[Gulvvarme kg]) -> 31.47
B9: Bygning 1 | C9: pro_13 | D9: 1 plans | E9: Fladt | F9: =IF(Table1[[#This Row],[Type]]="1 plans",1,IF(Table1[[#This Row],[Type]]="2 plans",2,0)) -> 1 | G9: =IF(Table1[[#This Row],[Tag]]="Ensidig hældning",2,IF(Table1[[#This Row],[Tag]]="Fladt",3,IF(Table1[[#This Row],[Tag]]="Sadel",1,0))) -> 3 | H9: 6 | I9: 180 | J9: 145 | K9: =IF(Table1[[#This Row],[Netto]]=" "," ",Table1[[#This Row],[Brutto]]/Table1[[#This Row],[Netto]]) -> 1.24137931 | L9: =(AC9+AD9+Table1[[#This Row],[Kanal - Indtag/afkast]])/I9 -> 0.3583333333 | M9: 2.5 | N9: =Table1[[#This Row],[Emhætte - kanallængde]]+Table1[[#This Row],[Kanal - Ind]]+Table1[[#This Row],[Kanal - Ud]]+Table1[[#This Row],[Kanal - Indtag/afkast]] -> 66 | O9: 22 | P9: Ja | S9: =Table1[[#This Row],[Gulvvarme længde]]/Table1[[#This Row],[Netto]] -> 0 | T9: =IF(Table1[[#This Row],[Gulvvarme - c.afstand]]=200,(Table1[[#This Row],[Gulvvarme længde]]*Gulvvarme!J$9),IF(Table1[[#This Row],[Gulvvarme - c.afstand]]=250,Table1[[#This Row],[Gulvvarme længde]]*Gulvvarme!J$8,Table1[[#This Row],[Gulvvarme længde]]*Gulvvarme!J$10)) -> 0 | U9: =Table1[[#This Row],[Gulvvarme kg]]/Table1[[#This Row],[Netto]] -> 0 | V9: =IF(Table1[[#This Row],[Gulvvarme - c.afstand]]=250,Table1[[#This Row],[Gulvvarme længde]]/Gulvvarme!I$8,IF(Table1[[#This Row],[Gulvvarme - c.afstand]]=300,Table1[[#This Row],[Gulvvarme længde]]/Gulvvarme!I$10,"")) ->  | W9: =Table1[[#This Row],[Gulvvarme m2]]/Table1[[#This Row],[Netto]] ->  | Y9: 6 | Z9: 4 | AA9: 1 | AB9: 1.5 | AC9: 27.5 | AD9: 31.5 | AE9: 5.5 | AF9: Dantherm HCV400P2 | AG9: Skab | AH9: 70 | AI9: 290 | AJ9: 24.16666667 | AM9: pro_14 - gennemsnit | AN9: =AVERAGEIF(Table1[Producent], "pro_14",Table1[Kanallængde pr. kvdm]) -> 0.3477588719 | AQ9: 2-plan - gennemsnit | AR9: =AVERAGEIF(Table1[Type], "2 plans",Table1[Gulvvarme m/m2]) -> 3.286616934 | AT9: 2-plan - gennemsnit | AU9: =AVERAGEIF(Table1[Type], "2 plans",Table1[Gulvvarme kg]) -> 42.25
B10: Bygning 4 | C10: pro_13 | D10: 1 plans | E10: Fladt | F10: =IF(Table1[[#This Row],[Type]]="1 plans",1,IF(Table1[[#This Row],[Type]]="2 plans",2,0)) -> 1 | G10: =IF(Table1[[#This Row],[Tag]]="Ensidig hældning",2,IF(Table1[[#This Row],[Tag]]="Fladt",3,IF(Table1[[#This Row],[Tag]]="Sadel",1,0))) -> 3 | H10: 6 | I10: 160 | J10: 154.1 | K10: =IF(Table1[[#This Row],[Netto]]=" "," ",Table1[[#This Row],[Brutto]]/Table1[[#This Row],[Netto]]) -> 1.038286827 | L10: =(AC10+AD10+Table1[[#This Row],[Kanal - Indtag/afkast]])/I10 -> 0.4 | M10: 2.41 | N10: =Table1[[#This Row],[Emhætte - kanallængde]]+Table1[[#This Row],[Kanal - Ind]]+Table1[[#This Row],[Kanal - Ud]]+Table1[[#This Row],[Kanal - Indtag/afkast]] -> 66 | O10: 22 | P10: Ja | S10: =Table1[[#This Row],[Gulvvarme længde]]/Table1[[#This Row],[Netto]] -> 0 | T10: =IF(Table1[[#This Row],[Gulvvarme - c.afstand]]=200,(Table1[[#This Row],[Gulvvarme længde]]*Gulvvarme!J$9),IF(Table1[[#This Row],[Gulvvarme - c.afstand]]=250,Table1[[#This Row],[Gulvvarme længde]]*Gulvvarme!J$8,Table1[[#This Row],[Gulvvarme længde]]*Gulvvarme!J$10)) -> 0 | U10: =Table1[[#This Row],[Gulvvarme kg]]/Table1[[#This Row],[Netto]] -> 0 | V10: =IF(Table1[[#This Row],[Gulvvarme - c.afstand]]=250,Table1[[#This Row],[Gulvvarme længde]]/Gulvvarme!I$8,IF(Table1[[#This Row],[Gulvvarme - c.afstand]]=300,Table1[[#This Row],[Gulvvarme længde]]/Gulvvarme!I$10,"")) ->  | W10: =Table1[[#This Row],[Gulvvarme m2]]/Table1[[#This Row],[Netto]] ->  | Y10: 5 | Z10: 4 | AA10: 1 | AB10: 2 | AC10: 31.5 | AD10: 27 | AE10: 5.5 | AF10: Dantherm HCV400P2 | AG10: Skab | AH10: 70 | AI10: 290 | AJ10: 25.68333333
B11: Bygning 5 | C11: pro_13 | D11: 1 plans | E11: Fladt | F11: =IF(Table1[[#This Row],[Type]]="1 plans",1,IF(Table1[[#This Row],[Type]]="2 plans",2,0)) -> 1 | G11: =IF(Table1[[#This Row],[Tag]]="Ensidig hældning",2,IF(Table1[[#This Row],[Tag]]="Fladt",3,IF(Table1[[#This Row],[Tag]]="Sadel",1,0))) -> 3 | H11: 5 | I11: 174 | J11: 145.6 | K11: =IF(Table1[[#This Row],[Netto]]=" "," ",Table1[[#This Row],[Brutto]]/Table1[[#This Row],[Netto]]) -> 1.195054945 | L11: =(AC11+AD11+Table1[[#This Row],[Kanal - Indtag/afkast]])/I11 -> 0.3275862069 | M11: 2.7 | N11: =Table1[[#This Row],[Emhætte - kanallængde]]+Table1[[#This Row],[Kanal - Ind]]+Table1[[#This Row],[Kanal - Ud]]+Table1[[#This Row],[Kanal - Indtag/afkast]] -> 59.6 | O11: 22 | P11: Ja | S11: =Table1[[#This Row],[Gulvvarme længde]]/Table1[[#This Row],[Netto]] -> 0 | T11: =IF(Table1[[#This Row],[Gulvvarme - c.afstand]]=200,(Table1[[#This Row],[Gulvvarme længde]]*Gulvvarme!J$9),IF(Table1[[#This Row],[Gulvvarme - c.afstand]]=250,Table1[[#This Row],[Gulvvarme længde]]*Gulvvarme!J$8,Table1[[#This Row],[Gulvvarme længde]]*Gulvvarme!J$10)) -> 0 | U11: =Table1[[#This Row],[Gulvvarme kg]]/Table1[[#This Row],[Netto]] -> 0 | V11: =IF(Table1[[#This Row],[Gulvvarme - c.afstand]]=250,Table1[[#This Row],[Gulvvarme længde]]/Gulvvarme!I$8,IF(Table1[[#This Row],[Gulvvarme - c.afstand]]=300,Table1[[#This Row],[Gulvvarme længde]]/Gulvvarme!I$10,"")) ->  | W11: =Table1[[#This Row],[Gulvvarme m2]]/Table1[[#This Row],[Netto]] ->  | Y11: 5 | Z11: 4 | AA11: 1 | AB11: 2.6 | AC11: 29 | AD11: 21.5 | AE11: 6.5 | AF11: Dantherm HCV400P2 | AG11: Skab | AH11: 70 | AI11: 290 | AJ11: 29.12 | AM11: 1-plan - gennemsnit | AN11: =AVERAGEIF(Table1[Type], "1 plans",Table1[Kanallængde pr. kvdm]) -> 0.3379493658 | AQ11: Median - m/m2 | AR11: =MEDIAN(Table1[Gulvvarme m/m2]) -> 2.719903865 | AT11: Median - kg | AU11: =MEDIAN(Table1[Gulvvarme kg]) -> 35.615
B12: Bygning 7 | C12: pro_13 | D12: 1 plans | E12: Fladt | F12: =IF(Table1[[#This Row],[Type]]="1 plans",1,IF(Table1[[#This Row],[Type]]="2 plans",2,0)) -> 1 | G12: =IF(Table1[[#This Row],[Tag]]="Ensidig hældning",2,IF(Table1[[#This Row],[Tag]]="Fladt",3,IF(Table1[[#This Row],[Tag]]="Sadel",1,0))) -> 3 | H12: 6 | I12: 160 | J12: 146 | K12: =IF(Table1[[#This Row],[Netto]]=" "," ",Table1[[#This Row],[Brutto]]/Table1[[#This Row],[Netto]]) -> 1.095890411 | L12: =(AC12+AD12+Table1[[#This Row],[Kanal - Indtag/afkast]])/I12 -> 0.29375 | M12: 2.6 | N12: =Table1[[#This Row],[Emhætte - kanallængde]]+Table1[[#This Row],[Kanal - Ind]]+Table1[[#This Row],[Kanal - Ud]]+Table1[[#This Row],[Kanal - Indtag/afkast]] -> 49 | O12: 22 | P12: Ja | S12: =Table1[[#This Row],[Gulvvarme længde]]/Table1[[#This Row],[Netto]] -> 0 | T12: =IF(Table1[[#This Row],[Gulvvarme - c.afstand]]=200,(Table1[[#This Row],[Gulvvarme længde]]*Gulvvarme!J$9),IF(Table1[[#This Row],[Gulvvarme - c.afstand]]=250,Table1[[#This Row],[Gulvvarme længde]]*Gulvvarme!J$8,Table1[[#This Row],[Gulvvarme længde]]*Gulvvarme!J$10)) -> 0 | U12: =Table1[[#This Row],[Gulvvarme kg]]/Table1[[#This Row],[Netto]] -> 0 | V12: =IF(Table1[[#This Row],[Gulvvarme - c.afstand]]=250,Table1[[#This Row],[Gulvvarme længde]]/Gulvvarme!I$8,IF(Table1[[#This Row],[Gulvvarme - c.afstand]]=300,Table1[[#This Row],[Gulvvarme længde]]/Gulvvarme!I$10,"")) ->  | W12: =Table1[[#This Row],[Gulvvarme m2]]/Table1[[#This Row],[Netto]] ->  | Y12: 6 | Z12: 4 | AA12: 1 | AB12: 2 | AC12: 24.5 | AD12: 16.5 | AE12: 6 | AF12: Dantherm HCV400P2 | AG12: Skab | AH12: 70 | AI12: 290 | AJ12: 24.33333333 | AM12: 2-plan - gennemsnit | AN12: =AVERAGEIF(Table1[Type], "2 plans",Table1[Kanallængde pr. kvdm]) -> 0.3179927458 | AQ12: pro_12 - median | AR12: =MEDIAN(IF(Table1[Producent]="pro_12",Table1[Gulvvarme m/m2] )) -> 5.027152318 | AT12: pro_12 - median | AU12: =MEDIAN(IF(Table1[Producent]="pro_12",Table1[Gulvvarme kg] )) -> 81.3033
B13: Bygning 8 | C13: pro_13 | D13: 1 plans | E13: Fladt | F13: =IF(Table1[[#This Row],[Type]]="1 plans",1,IF(Table1[[#This Row],[Type]]="2 plans",2,0)) -> 1 | G13: =IF(Table1[[#This Row],[Tag]]="Ensidig hældning",2,IF(Table1[[#This Row],[Tag]]="Fladt",3,IF(Table1[[#This Row],[Tag]]="Sadel",1,0))) -> 3 | H13: 7 | I13: 224 | J13: 169 | K13: =IF(Table1[[#This Row],[Netto]]=" "," ",Table1[[#This Row],[Brutto]]/Table1[[#This Row],[Netto]]) -> 1.325443787 | L13: =(AC13+AD13+Table1[[#This Row],[Kanal - Indtag/afkast]])/I13 -> 0.2924107143 | M13: 2.6 | N13: =Table1[[#This Row],[Emhætte - kanallængde]]+Table1[[#This Row],[Kanal - Ind]]+Table1[[#This Row],[Kanal - Ud]]+Table1[[#This Row],[Kanal - Indtag/afkast]] -> 67.5 | O13: 23 | P13: Ja | S13: =Table1[[#This Row],[Gulvvarme længde]]/Table1[[#This Row],[Netto]] -> 0 | T13: =IF(Table1[[#This Row],[Gulvvarme - c.afstand]]=200,(Table1[[#This Row],[Gulvvarme længde]]*Gulvvarme!J$9),IF(Table1[[#This Row],[Gulvvarme - c.afstand]]=250,Table1[[#This Row],[Gulvvarme længde]]*Gulvvarme!J$8,Table1[[#This Row],[Gulvvarme længde]]*Gulvvarme!J$10)) -> 0 | U13: =Table1[[#This Row],[Gulvvarme kg]]/Table1[[#This Row],[Netto]] -> 0 | V13: =IF(Table1[[#This Row],[Gulvvarme - c.afstand]]=250,Table1[[#This Row],[Gulvvarme længde]]/Gulvvarme!I$8,IF(Table1[[#This Row],[Gulvvarme - c.afstand]]=300,Table1[[#This Row],[Gulvvarme længde]]/Gulvvarme!I$10,"")) ->  | W13: =Table1[[#This Row],[Gulvvarme m2]]/Table1[[#This Row],[Netto]] ->  | Y13: 7 | Z13: 4 | AA13: 1 | AB13: 2 | AC13: 33 | AD13: 26.5 | AE13: 6 | AF13: Dantherm HCV400P2 | AG13: Skab | AH13: 70 | AI13: 290 | AJ13: 24.14285714 | AQ13: pro_11 - median | AR13: =MEDIAN(IF(Table1[Producent]="pro_11",Table1[Gulvvarme m/m2] )) -> 4.378281112 | AT13: pro_11 - median | AU13: =MEDIAN(IF(Table1[Producent]="pro_11",Table1[Gulvvarme kg] )) -> 35.445
B14: Bygning 9 | C14: pro_13 | D14: 1 plans | E14: Fladt | F14: =IF(Table1[[#This Row],[Type]]="1 plans",1,IF(Table1[[#This Row],[Type]]="2 plans",2,0)) -> 1 | G14: =IF(Table1[[#This Row],[Tag]]="Ensidig hældning",2,IF(Table1[[#This Row],[Tag]]="Fladt",3,IF(Table1[[#This Row],[Tag]]="Sadel",1,0))) -> 3 | H14: 6 | I14: 171 | J14: 130.9 | K14: =IF(Table1[[#This Row],[Netto]]=" "," ",Table1[[#This Row],[Brutto]]/Table1[[#This Row],[Netto]]) -> 1.306340718 | L14: =(AC14+AD14+Table1[[#This Row],[Kanal - Indtag/afkast]])/I14 -> 0.3538011696 | M14: 2.7 | N14: =Table1[[#This Row],[Emhætte - kanallængde]]+Table1[[#This Row],[Kanal - Ind]]+Table1[[#This Row],[Kanal - Ud]]+Table1[[#This Row],[Kanal - Indtag/afkast]] -> 62.75 | O14: 23 | P14: Ja | S14: =Table1[[#This Row],[Gulvvarme længde]]/Table1[[#This Row],[Netto]] -> 0 | T14: =IF(Table1[[#This Row],[Gulvvarme - c.afstand]]=200,(Table1[[#This Row],[Gulvvarme længde]]*Gulvvarme!J$9),IF(Table1[[#This Row],[Gulvvarme - c.afstand]]=250,Table1[[#This Row],[Gulvvarme længde]]*Gulvvarme!J$8,Table1[[#This Row],[Gulvvarme længde]]*Gulvvarme!J$10)) -> 0 | U14: =Table1[[#This Row],[Gulvvarme kg]]/Table1[[#This Row],[Netto]] -> 0 | V14: =IF(Table1[[#This Row],[Gulvvarme - c.afstand]]=250,Table1[[#This Row],[Gulvvarme længde]]/Gulvvarme!I$8,IF(Table1[[#This Row],[Gulvvarme - c.afstand]]=300,Table1[[#This Row],[Gulvvarme længde]]/Gulvvarme!I$10,"")) ->  | W14: =Table1[[#This Row],[Gulvvarme m2]]/Table1[[#This Row],[Netto]] ->  | Y14: 6 | Z14: 4 | AA14: 1 | AB14: 2.25 | AC14: 29.5 | AD14: 24 | AE14: 7 | AF14: Dantherm HCV400P2 | AG14: Skab | AH14: 70 | AI14: 290 | AJ14: 21.81666667 | AM14: pro_12 - median | AN14: =MEDIAN(IF(Table1[Producent]="pro_12",Table1[Kanallængde pr. kvdm] )) -> 0.3061333333 | AQ14: 1-plan - median | AR14: =MEDIAN(IF(Table1[Type]="1 plans",Table1[Gulvvarme m/m2] )) -> 2.719903865 | AT14: 1-plan - median | AU14: =MEDIAN(IF(Table1[Type]="1 plans",Table1[Gulvvarme kg] )) -> 35.615
B15: Bygning 4 | C15: pro_14 | D15: 1 plans | E15: Fladt | F15: =IF(Table1[[#This Row],[Type]]="1 plans",1,IF(Table1[[#This Row],[Type]]="2 plans",2,0)) -> 1 | G15: =IF(Table1[[#This Row],[Tag]]="Ensidig hældning",2,IF(Table1[[#This Row],[Tag]]="Fladt",3,IF(Table1[[#This Row],[Tag]]="Sadel",1,0))) -> 3 | H15: 6 | I15: 189 | J15: 156.7 | K15: =IF(Table1[[#This Row],[Netto]]=" "," ",Table1[[#This Row],[Brutto]]/Table1[[#This Row],[Netto]]) -> 1.206126356 | L15: =(AC15+AD15+Table1[[#This Row],[Kanal - Indtag/afkast]])/I15 -> 0.3544973545 | M15: 2.75 | N15: =Table1[[#This Row],[Emhætte - kanallængde]]+Table1[[#This Row],[Kanal - Ind]]+Table1[[#This Row],[Kanal - Ud]]+Table1[[#This Row],[Kanal - Indtag/afkast]] -> 69.1 | O15: 24 | P15: Ja | R15: =(36+55+44+87+95+43+60) -> 420 | S15: =Table1[[#This Row],[Gulvvarme længde]]/Table1[[#This Row],[Netto]] -> 2.680280791 | T15: =IF(Table1[[#This Row],[Gulvvarme - c.afstand]]=200,(Table1[[#This Row],[Gulvvarme længde]]*Gulvvarme!J$9),IF(Table1[[#This Row],[Gulvvarme - c.afstand]]=250,Table1[[#This Row],[Gulvvarme længde]]*Gulvvarme!J$8,Table1[[#This Row],[Gulvvarme længde]]*Gulvvarme!J$10)) -> 49.14 | U15: =Table1[[#This Row],[Gulvvarme kg]]/Table1[[#This Row],[Netto]] -> 0.3135928526 | V15: =IF(Table1[[#This Row],[Gulvvarme - c.afstand]]=250,Table1[[#This Row],[Gulvvarme længde]]/Gulvvarme!I$8,IF(Table1[[#This Row],[Gulvvarme - c.afstand]]=300,Table1[[#This Row],[Gulvvarme længde]]/Gulvvarme!I$10,"")) ->  | W15: =Table1[[#This Row],[Gulvvarme m2]]/Table1[[#This Row],[Netto]] ->  | Y15: 6 | Z15: 6 | AA15: 1 | AB15: 2.1 | AC15: 28 | AD15: 36 | AE15: 3 | AF15: Nilan CT350TOP | AG15: Loft | AH15: 100 | AI15: 400 | AJ15: 26.11666667 | AM15: pro_11 - median | AN15: =MEDIAN(IF(Table1[Producent]="pro_11",Table1[Kanallængde pr. kvdm] )) -> 0.3402404421 | AQ15: 2-plan - median | AR15: =MEDIAN(IF(Table1[Type]="2 plans",Table1[Gulvvarme m/m2] )) -> 3.286616934 | AT15: 2-plan - median | AU15: =MEDIAN(IF(Table1[Type]="2 plans",Table1[Gulvvarme kg] )) -> 42.25
B16: Bygning 5 | C16: pro_14 | D16: 1 plans | E16: Fladt | F16: =IF(Table1[[#This Row],[Type]]="1 plans",1,IF(Table1[[#This Row],[Type]]="2 plans",2,0)) -> 1 | G16: =IF(Table1[[#This Row],[Tag]]="Ensidig hældning",2,IF(Table1[[#This Row],[Tag]]="Fladt",3,IF(Table1[[#This Row],[Tag]]="Sadel",1,0))) -> 3 | H16: 6 | I16: 160 | J16: 135.65 | K16: =IF(Table1[[#This Row],[Netto]]=" "," ",Table1[[#This Row],[Brutto]]/Table1[[#This Row],[Netto]]) -> 1.179506082 | L16: =(AC16+AD16+Table1[[#This Row],[Kanal - Indtag/afkast]])/I16 -> 0.33375 | M16: 2.7 | N16: =Table1[[#This Row],[Emhætte - kanallængde]]+Table1[[#This Row],[Kanal - Ind]]+Table1[[#This Row],[Kanal - Ud]]+Table1[[#This Row],[Kanal - Indtag/afkast]] -> 55.4 | O16: 19 | P16: Ja | R16: =(36+55+44+87+95+43+60) -> 420 | S16: =Table1[[#This Row],[Gulvvarme længde]]/Table1[[#This Row],[Netto]] -> 3.096203465 | T16: =IF(Table1[[#This Row],[Gulvvarme - c.afstand]]=200,(Table1[[#This Row],[Gulvvarme længde]]*Gulvvarme!J$9),IF(Table1[[#This Row],[Gulvvarme - c.afstand]]=250,Table1[[#This Row],[Gulvvarme længde]]*Gulvvarme!J$8,Table1[[#This Row],[Gulvvarme længde]]*Gulvvarme!J$10)) -> 49.14 | U16: =Table1[[#This Row],[Gulvvarme kg]]/Table1[[#This Row],[Netto]] -> 0.3622558054 | V16: =IF(Table1[[#This Row],[Gulvvarme - c.afstand]]=250,Table1[[#This Row],[Gulvvarme længde]]/Gulvvarme!I$8,IF(Table1[[#This Row],[Gulvvarme - c.afstand]]=300,Table1[[#This Row],[Gulvvarme længde]]/Gulvvarme!I$10,"")) ->  | W16: =Table1[[#This Row],[Gulvvarme m2]]/Table1[[#This Row],[Netto]] ->  | Y16: 6 | Z16: 4 | AA16: 1 | AB16: 2 | AC16: 18.4 | AD16: 30.4 | AE16: 4.6 | AF16: Nilan CT300LR | AG16: Skab | AH16: 100 | AI16: 400 | AJ16: 22.60833333 | AM16: pro_13 - median | AN16: =MEDIAN(IF(Table1[Producent]="pro_13",Table1[Kanallængde pr. kvdm] )) -> 0.3275862069
B17: Bygning 6 | C17: pro_14 | D17: 1 plans | E17: Fladt | F17: =IF(Table1[[#This Row],[Type]]="1 plans",1,IF(Table1[[#This Row],[Type]]="2 plans",2,0)) -> 1 | G17: =IF(Table1[[#This Row],[Tag]]="Ensidig hældning",2,IF(Table1[[#This Row],[Tag]]="Fladt",3,IF(Table1[[#This Row],[Tag]]="Sadel",1,0))) -> 3 | H17: 6 | I17: 182 | J17: 152.2 | K17: =IF(Table1[[#This Row],[Netto]]=" "," ",Table1[[#This Row],[Brutto]]/Table1[[#This Row],[Netto]]) -> 1.195795007 | L17: =(AC17+AD17+Table1[[#This Row],[Kanal - Indtag/afkast]])/I17 -> 0.3434065934 | M17: 2.5 | N17: =Table1[[#This Row],[Emhætte - kanallængde]]+Table1[[#This Row],[Kanal - Ind]]+Table1[[#This Row],[Kanal - Ud]]+Table1[[#This Row],[Kanal - Indtag/afkast]] -> 64.75 | O17: 21 | P17: Ja | R17: =(36+55+44+87+95+43+60) -> 420 | S17: =Table1[[#This Row],[Gulvvarme længde]]/Table1[[#This Row],[Netto]] -> 2.759526938 | T17: =IF(Table1[[#This Row],[Gulvvarme - c.afstand]]=200,(Table1[[#This Row],[Gulvvarme længde]]*Gulvvarme!J$9),IF(Table1[[#This Row],[Gulvvarme - c.afstand]]=250,Table1[[#This Row],[Gulvvarme længde]]*Gulvvarme!J$8,Table1[[#This Row],[Gulvvarme længde]]*Gulvvarme!J$10)) -> 49.14 | U17: =Table1[[#This Row],[Gulvvarme kg]]/Table1[[#This Row],[Netto]] -> 0.3228646518 | V17: =IF(Table1[[#This Row],[Gulvvarme - c.afstand]]=250,Table1[[#This Row],[Gulvvarme længde]]/Gulvvarme!I$8,IF(Table1[[#This Row],[Gulvvarme - c.afstand]]=300,Table1[[#This Row],[Gulvvarme længde]]/Gulvvarme!I$10,"")) ->  | W17: =Table1[[#This Row],[Gulvvarme m2]]/Table1[[#This Row],[Netto]] ->  | Y17: 6 | Z17: 6 | AA17: 1 | AB17: 2.25 | AC17: 30.8 | AD17: 28.1 | AE17: 3.6 | AF17: Nilan CT300LR | AG17: Skab | AH17: 100 | AI17: 400 | AJ17: 25.36666667 | AM17: pro_14 - median | AN17: =MEDIAN(IF(Table1[Producent]="pro_14",Table1[Kanallængde pr. kvdm] )) -> 0.3435782967 | AQ17: Gennemsnit - m/m2 - 200mm | AR17: =AVERAGEIF(Table1[Gulvvarme - c.afstand], "200",Table1[Gulvvarme m/m2]) ->  | AT17: Gennemsnit - kg/m2 | AU17: =AVERAGE(Table1[Gulvvarme kg/m2]) -> 0.248237329
B18: Bygning 3 | C18: pro_13 | D18: 1 plans | E18: Fladt | F18: =IF(Table1[[#This Row],[Type]]="1 plans",1,IF(Table1[[#This Row],[Type]]="2 plans",2,0)) -> 1 | G18: =IF(Table1[[#This Row],[Tag]]="Ensidig hældning",2,IF(Table1[[#This Row],[Tag]]="Fladt",3,IF(Table1[[#This Row],[Tag]]="Sadel",1,0))) -> 3 | H18: 5 | I18: 134 | J18: 121.3 | K18: =IF(Table1[[#This Row],[Netto]]=" "," ",Table1[[#This Row],[Brutto]]/Table1[[#This Row],[Netto]]) -> 1.104699093 | L18: =(AC18+AD18+Table1[[#This Row],[Kanal - Indtag/afkast]])/I18 -> 0.3544776119 | M18: 2.42 | N18: =Table1[[#This Row],[Emhætte - kanallængde]]+Table1[[#This Row],[Kanal - Ind]]+Table1[[#This Row],[Kanal - Ud]]+Table1[[#This Row],[Kanal - Indtag/afkast]] -> 49.65 | O18: 21 | P18: Ja | S18: =Table1[[#This Row],[Gulvvarme længde]]/Table1[[#This Row],[Netto]] -> 0 | T18: =IF(Table1[[#This Row],[Gulvvarme - c.afstand]]=200,(Table1[[#This Row],[Gulvvarme længde]]*Gulvvarme!J$9),IF(Table1[[#This Row],[Gulvvarme - c.afstand]]=250,Table1[[#This Row],[Gulvvarme længde]]*Gulvvarme!J$8,Table1[[#This Row],[Gulvvarme længde]]*Gulvvarme!J$10)) -> 0 | U18: =Table1[[#This Row],[Gulvvarme kg]]/Table1[[#This Row],[Netto]] -> 0 | V18: =IF(Table1[[#This Row],[Gulvvarme - c.afstand]]=250,Table1[[#This Row],[Gulvvarme længde]]/Gulvvarme!I$8,IF(Table1[[#This Row],[Gulvvarme - c.afstand]]=300,Table1[[#This Row],[Gulvvarme længde]]/Gulvvarme!I$10,"")) ->  | W18: =Table1[[#This Row],[Gulvvarme m2]]/Table1[[#This Row],[Netto]] ->  | Y18: 6 | Z18: 3 | AA18: 1 | AB18: 2.15 | AC18: 23 | AD18: 18 | AE18: 6.5 | AF18: Dantherm HCV400P2 | AG18: Skab | AH18: 70 | AI18: 290 | AJ18: 24.26 | AQ18: Gennemsnit - m/m2 - 250mm | AR18: =AVERAGEIF(Table1[Gulvvarme - c.afstand], "250",Table1[Gulvvarme m/m2]) -> 4.34977404 | AT18: pro_12 - gennemsnit | AU18: =AVERAGEIF(Table1[Producent], "pro_12",Table1[Gulvvarme kg/m2]) -> 0.5918233709
B19: Type 1 BB - Bolig 1-7 - 1 plan | C19: pro_11 | D19: 1 plans | E19: Sadel | F19: =IF(Table1[[#This Row],[Type]]="1 plans",1,IF(Table1[[#This Row],[Type]]="2 plans",2,0)) -> 1 | G19: =IF(Table1[[#This Row],[Tag]]="Ensidig hældning",2,IF(Table1[[#This Row],[Tag]]="Fladt",3,IF(Table1[[#This Row],[Tag]]="Sadel",1,0))) -> 1 | H19: 3 | I19: 108 | J19: =10.8+6.8+57.8+6+5+9.4 -> 95.8 | K19: =IF(Table1[[#This Row],[Netto]]=" "," ",Table1[[#This Row],[Brutto]]/Table1[[#This Row],[Netto]]) -> 1.127348643 | L19: =(AC19+AD19+Table1[[#This Row],[Kanal - Indtag/afkast]])/I19 -> 0.3643518519 | M19: 2.5 | N19: =Table1[[#This Row],[Emhætte - kanallængde]]+Table1[[#This Row],[Kanal - Ind]]+Table1[[#This Row],[Kanal - Ud]]+Table1[[#This Row],[Kanal - Indtag/afkast]] -> 42.5 | O19: =(1*Y19+Z19)+(2*Y19+Z19) -> 19 | P19: Ja | Q19: 250 | R19: =86+95+60+43+44+35+55 -> 418 | S19: =Table1[[#This Row],[Gulvvarme længde]]/Table1[[#This Row],[Netto]] -> 4.363256785 | T19: =IF(Table1[[#This Row],[Gulvvarme - c.afstand]]=200,(Table1[[#This Row],[Gulvvarme længde]]*Gulvvarme!J$9),IF(Table1[[#This Row],[Gulvvarme - c.afstand]]=250,Table1[[#This Row],[Gulvvarme længde]]*Gulvvarme!J$8,Table1[[#This Row],[Gulvvarme længde]]*Gulvvarme!J$10)) -> 35.53 | U19: =Table1[[#This Row],[Gulvvarme kg]]/Table1[[#This Row],[Netto]] -> 0.3708768267 | V19: =IF(Table1[[#This Row],[Gulvvarme - c.afstand]]=250,Table1[[#This Row],[Gulvvarme længde]]/Gulvvarme!I$8,IF(Table1[[#This Row],[Gulvvarme - c.afstand]]=300,Table1[[#This Row],[Gulvvarme længde]]/Gulvvarme!I$10,"")) -> 104.5 | W19: =Table1[[#This Row],[Gulvvarme m2]]/Table1[[#This Row],[Netto]] -> 1.090814196 | X19: 7 | Y19: 5 | Z19: 2 | AA19: 1 | AB19: 3.15 | AC19: =2+1+6.25+8.25+9+1.5 -> 28 | AD19: =2.25+5+1 -> 8.25 | AE19: 3.1 | AF19: Dantherm HCH5U | AG19: Loft | AH19: 70 | AI19: 280 | AJ19: 31.93333333 | AM19: 1-plan - median | AN19: =MEDIAN(IF(Table1[Type]="1 plans",Table1[Kanallængde pr. kvdm] )) -> 0.3435782967 | AQ19: Gennemsnit - m/m2 - 300mm | AR19: =AVERAGEIF(Table1[Gulvvarme - c.afstand], "300",Table1[Gulvvarme m/m2]) -> 5.05831941 | AT19: pro_11 - gennemsnit | AU19: =AVERAGEIF(Table1[Producent], "pro_11",Table1[Gulvvarme kg/m2]) -> 0.3697307934
B20: Type 2 A - Bolig 1-7 - 1 plan | C20: pro_11 | D20: 1 plans | E20: Sadel | F20: =IF(Table1[[#This Row],[Type]]="1 plans",1,IF(Table1[[#This Row],[Type]]="2 plans",2,0)) -> 1 | G20: =IF(Table1[[#This Row],[Tag]]="Ensidig hældning",2,IF(Table1[[#This Row],[Tag]]="Fladt",3,IF(Table1[[#This Row],[Tag]]="Sadel",1,0))) -> 1 | H20: 3 | I20: 95 | J20: =3.7+6.2+9.7+10.9+2.9+44.6 -> 78 | K20: =IF(Table1[[#This Row],[Netto]]=" "," ",Table1[[#This Row],[Brutto]]/Table1[[#This Row],[Netto]]) -> 1.217948718 | L20: =(AC20+AD20+Table1[[#This Row],[Kanal - Indtag/afkast]])/I20 -> 0.48 | M20: 2.5 | N20: =Table1[[#This Row],[Emhætte - kanallængde]]+Table1[[#This Row],[Kanal - Ind]]+Table1[[#This Row],[Kanal - Ud]]+Table1[[#This Row],[Kanal - Indtag/afkast]] -> 48.75 | O20: =(1*Y20+Z20)+(2*Y20+Z20) -> 19 | P20: Ja | Q20: 250 | R20: =78+69+44+42+29+40+54 -> 356 | S20: =Table1[[#This Row],[Gulvvarme længde]]/Table1[[#This Row],[Netto]] -> 4.564102564 | T20: =IF(Table1[[#This Row],[Gulvvarme - c.afstand]]=200,(Table1[[#This Row],[Gulvvarme længde]]*Gulvvarme!J$9),IF(Table1[[#This Row],[Gulvvarme - c.afstand]]=250,Table1[[#This Row],[Gulvvarme længde]]*Gulvvarme!J$8,Table1[[#This Row],[Gulvvarme længde]]*Gulvvarme!J$10)) -> 30.26 | U20: =Table1[[#This Row],[Gulvvarme kg]]/Table1[[#This Row],[Netto]] -> 0.3879487179 | V20: =IF(Table1[[#This Row],[Gulvvarme - c.afstand]]=250,Table1[[#This Row],[Gulvvarme længde]]/Gulvvarme!I$8,IF(Table1[[#This Row],[Gulvvarme - c.afstand]]=300,Table1[[#This Row],[Gulvvarme længde]]/Gulvvarme!I$10,"")) -> 89 | W20: =Table1[[#This Row],[Gulvvarme m2]]/Table1[[#This Row],[Netto]] -> 1.141025641 | X20: 7 | Y20: 5 | Z20: 2 | AA20: 1 | AB20: 3.15 | AC20: =1.5+2+3+8+9+1.5 -> 25 | AD20: =6.5+10+1 -> 17.5 | AE20: 3.1 | AF20: Dantherm HCH5U | AG20: Loft | AH20: 70 | AI20: 280 | AJ20: 26 | AM20: 2-plan - median | AN20: =MEDIAN(IF(Table1[Type]="2 plans",Table1[Kanallængde pr. kvdm] )) -> 0.3179927458 | AQ20: Median - m/m2 - 200mm | AR20: =MEDIAN(IF(Table1[Gulvvarme - c.afstand]=200,Table1[Gulvvarme m/m2] )) ->  | AT20: 1-plan - gennemsnit | AU20: =AVERAGEIF(Table1[Type], "1 plans",Table1[Gulvvarme kg/m2]) -> 0.2417789699
B21: Type 3 B - Bolig 8-11 - 1 plan | C21: pro_11 | D21: 1 plans | E21: Sadel | F21: =IF(Table1[[#This Row],[Type]]="1 plans",1,IF(Table1[[#This Row],[Type]]="2 plans",2,0)) -> 1 | G21: =IF(Table1[[#This Row],[Tag]]="Ensidig hældning",2,IF(Table1[[#This Row],[Tag]]="Fladt",3,IF(Table1[[#This Row],[Tag]]="Sadel",1,0))) -> 1 | H21: 3 | I21: 115 | J21: =9.4+12+5+6+6.8+56.4 -> 95.6 | K21: =IF(Table1[[#This Row],[Netto]]=" "," ",Table1[[#This Row],[Brutto]]/Table1[[#This Row],[Netto]]) -> 1.20292887 | L21: =(AC21+AD21+Table1[[#This Row],[Kanal - Indtag/afkast]])/I21 -> 0.2313043478 | M21: 2.5 | N21: =Table1[[#This Row],[Emhætte - kanallængde]]+Table1[[#This Row],[Kanal - Ind]]+Table1[[#This Row],[Kanal - Ud]]+Table1[[#This Row],[Kanal - Indtag/afkast]] -> 29.75 | O21: =(1*Y21+Z21)+(2*Y21+Z21) -> 16 | P21: Ja | Q21: 250 | R21: =(36+55+44+87+95+43+60) -> 420 | S21: =Table1[[#This Row],[Gulvvarme længde]]/Table1[[#This Row],[Netto]] -> 4.393305439 | T21: =IF(Table1[[#This Row],[Gulvvarme - c.afstand]]=200,(Table1[[#This Row],[Gulvvarme længde]]*Gulvvarme!J$9),IF(Table1[[#This Row],[Gulvvarme - c.afstand]]=250,Table1[[#This Row],[Gulvvarme længde]]*Gulvvarme!J$8,Table1[[#This Row],[Gulvvarme længde]]*Gulvvarme!J$10)) -> 35.7 | U21: =Table1[[#This Row],[Gulvvarme kg]]/Table1[[#This Row],[Netto]] -> 0.3734309623 | V21: =IF(Table1[[#This Row],[Gulvvarme - c.afstand]]=250,Table1[[#This Row],[Gulvvarme længde]]/Gulvvarme!I$8,IF(Table1[[#This Row],[Gulvvarme - c.afstand]]=300,Table1[[#This Row],[Gulvvarme længde]]/Gulvvarme!I$10,"")) -> 105 | W21: =Table1[[#This Row],[Gulvvarme m2]]/Table1[[#This Row],[Netto]] -> 1.09832636 | X21: 7 | Y21: 4 | Z21: 2 | AA21: 1 | AB21: 3.15 | AC21: =1.5+1+2+4.5+6.5 -> 15.5 | AD21: =1+2.5+4.5 -> 8 | AE21: 3.1 | AF21: Dantherm HCH5U | AG21: Loft | AH21: 70 | AI21: 280 | AJ21: 31.86666667 | AQ21: Median - m/m2 - 250mm | AR21: =MEDIAN(IF(Table1[Gulvvarme - c.afstand]=250,Table1[Gulvvarme m/m2] )) -> 4.378281112 | AT21: 2-plan - gennemsnit | AU21: =AVERAGEIF(Table1[Type], "2 plans",Table1[Gulvvarme kg/m2]) -> 0.3192792793
B22: Bygning 1 | C22: pro_14 | D22: 1 plans | E22: Sadel | F22: =IF(Table1[[#This Row],[Type]]="1 plans",1,IF(Table1[[#This Row],[Type]]="2 plans",2,0)) -> 1 | G22: =IF(Table1[[#This Row],[Tag]]="Ensidig hældning",2,IF(Table1[[#This Row],[Tag]]="Fladt",3,IF(Table1[[#This Row],[Tag]]="Sadel",1,0))) -> 1 | H22: 6 | I22: 154 | J22: 129.8 | K22: =IF(Table1[[#This Row],[Netto]]=" "," ",Table1[[#This Row],[Brutto]]/Table1[[#This Row],[Netto]]) -> 1.186440678 | L22: =(AC22+AD22+Table1[[#This Row],[Kanal - Indtag/afkast]])/I22 -> 0.3246753247 | M22: 2.47 | N22: =Table1[[#This Row],[Emhætte - kanallængde]]+Table1[[#This Row],[Kanal - Ind]]+Table1[[#This Row],[Kanal - Ud]]+Table1[[#This Row],[Kanal - Indtag/afkast]] -> 54.75 | O22: 24 | P22: Ja | R22: =(36+55+44+87+95+43+60) -> 420 | S22: =Table1[[#This Row],[Gulvvarme længde]]/Table1[[#This Row],[Netto]] -> 3.235747304 | T22: =IF(Table1[[#This Row],[Gulvvarme - c.afstand]]=200,(Table1[[#This Row],[Gulvvarme længde]]*Gulvvarme!J$9),IF(Table1[[#This Row],[Gulvvarme - c.afstand]]=250,Table1[[#This Row],[Gulvvarme længde]]*Gulvvarme!J$8,Table1[[#This Row],[Gulvvarme længde]]*Gulvvarme!J$10)) -> 49.14 | U22: =Table1[[#This Row],[Gulvvarme kg]]/Table1[[#This Row],[Netto]] -> 0.3785824345 | V22: =IF(Table1[[#This Row],[Gulvvarme - c.afstand]]=250,Table1[[#This Row],[Gulvvarme længde]]/Gulvvarme!I$8,IF(Table1[[#This Row],[Gulvvarme - c.afstand]]=300,Table1[[#This Row],[Gulvvarme længde]]/Gulvvarme!I$10,"")) ->  | W22: =Table1[[#This Row],[Gulvvarme m2]]/Table1[[#This Row],[Netto]] ->  | Y22: 6 | Z22: 5 | AA22: 1 | AB22: 4.75 | AC22: 29 | AD22: 16 | AE22: 5 | AF22: Nilan CT300LR | AG22: Loft | AH22: 100 | AI22: 400 | AJ22: 21.63333333 | AQ22: Median - m/m2 - 300mm | AR22: =MEDIAN(IF(Table1[Gulvvarme - c.afstand]=300,Table1[Gulvvarme m/m2] )) -> 5.027152318
B23: Bygning 2 | C23: pro_14 | D23: 1 plans | E23: Sadel | F23: =IF(Table1[[#This Row],[Type]]="1 plans",1,IF(Table1[[#This Row],[Type]]="2 plans",2,0)) -> 1 | G23: =IF(Table1[[#This Row],[Tag]]="Ensidig hældning",2,IF(Table1[[#This Row],[Tag]]="Fladt",3,IF(Table1[[#This Row],[Tag]]="Sadel",1,0))) -> 1 | H23: 6 | I23: 190 | J23: 160.5 | K23: =IF(Table1[[#This Row],[Netto]]=" "," ",Table1[[#This Row],[Brutto]]/Table1[[#This Row],[Netto]]) -> 1.183800623 | L23: =(AC23+AD23+Table1[[#This Row],[Kanal - Indtag/afkast]])/I23 -> 0.3728947368 | M23: 2.67 | N23: =Table1[[#This Row],[Emhætte - kanallængde]]+Table1[[#This Row],[Kanal - Ind]]+Table1[[#This Row],[Kanal - Ud]]+Table1[[#This Row],[Kanal - Indtag/afkast]] -> 75.35 | O23: 22 | P23: Ja | R23: =(36+55+44+87+95+43+60) -> 420 | S23: =Table1[[#This Row],[Gulvvarme længde]]/Table1[[#This Row],[Netto]] -> 2.61682243 | T23: =IF(Table1[[#This Row],[Gulvvarme - c.afstand]]=200,(Table1[[#This Row],[Gulvvarme længde]]*Gulvvarme!J$9),IF(Table1[[#This Row],[Gulvvarme - c.afstand]]=250,Table1[[#This Row],[Gulvvarme længde]]*Gulvvarme!J$8,Table1[[#This Row],[Gulvvarme længde]]*Gulvvarme!J$10)) -> 49.14 | U23: =Table1[[#This Row],[Gulvvarme kg]]/Table1[[#This Row],[Netto]] -> 0.3061682243 | V23: =IF(Table1[[#This Row],[Gulvvarme - c.afstand]]=250,Table1[[#This Row],[Gulvvarme længde]]/Gulvvarme!I$8,IF(Table1[[#This Row],[Gulvvarme - c.afstand]]=300,Table1[[#This Row],[Gulvvarme længde]]/Gulvvarme!I$10,"")) ->  | W23: =Table1[[#This Row],[Gulvvarme m2]]/Table1[[#This Row],[Netto]] ->  | Y23: 6 | Z23: 5 | AA23: 1 | AB23: 4.5 | AC23: 37 | AD23: 28.1 | AE23: 5.75 | AF23: Nilan CT300LR | AG23: Loft | AH23: 100 | AI23: 400 | AJ23: 26.75 | AT23: Median - kg/m2 | AU23: =MEDIAN(Table1[Gulvvarme kg/m2]) -> 0.3182287522
B24: Bygning 3 | C24: pro_14 | D24: 1 plans | E24: Sadel | F24: =IF(Table1[[#This Row],[Type]]="1 plans",1,IF(Table1[[#This Row],[Type]]="2 plans",2,0)) -> 1 | G24: =IF(Table1[[#This Row],[Tag]]="Ensidig hældning",2,IF(Table1[[#This Row],[Tag]]="Fladt",3,IF(Table1[[#This Row],[Tag]]="Sadel",1,0))) -> 1 | H24: 6 | I24: 158 | J24: 121.5 | K24: =IF(Table1[[#This Row],[Netto]]=" "," ",Table1[[#This Row],[Brutto]]/Table1[[#This Row],[Netto]]) -> 1.300411523 | L24: =(AC24+AD24+Table1[[#This Row],[Kanal - Indtag/afkast]])/I24 -> 0.3892405063 | M24: 2.5 | N24: =Table1[[#This Row],[Emhætte - kanallængde]]+Table1[[#This Row],[Kanal - Ind]]+Table1[[#This Row],[Kanal - Ud]]+Table1[[#This Row],[Kanal - Indtag/afkast]] -> 66.3 | O24: 23 | P24: Ja | R24: =(36+55+44+87+95+43+60) -> 420 | S24: =Table1[[#This Row],[Gulvvarme længde]]/Table1[[#This Row],[Netto]] -> 3.456790123 | T24: =IF(Table1[[#This Row],[Gulvvarme - c.afstand]]=200,(Table1[[#This Row],[Gulvvarme længde]]*Gulvvarme!J$9),IF(Table1[[#This Row],[Gulvvarme - c.afstand]]=250,Table1[[#This Row],[Gulvvarme længde]]*Gulvvarme!J$8,Table1[[#This Row],[Gulvvarme længde]]*Gulvvarme!J$10)) -> 49.14 | U24: =Table1[[#This Row],[Gulvvarme kg]]/Table1[[#This Row],[Netto]] -> 0.4044444444 | V24: =IF(Table1[[#This Row],[Gulvvarme - c.afstand]]=250,Table1[[#This Row],[Gulvvarme længde]]/Gulvvarme!I$8,IF(Table1[[#This Row],[Gulvvarme - c.afstand]]=300,Table1[[#This Row],[Gulvvarme længde]]/Gulvvarme!I$10,"")) ->  | W24: =Table1[[#This Row],[Gulvvarme m2]]/Table1[[#This Row],[Netto]] ->  | Y24: 6 | Z24: 5 | AA24: 1 | AB24: 4.8 | AC24: 33.5 | AD24: 23.25 | AE24: 4.75 | AF24: Nilan CT300LR | AG24: Loft | AH24: 100 | AI24: 400 | AJ24: 20.25 | AM24: Emhætte - kanallængder ( Foreløbig version - mangler data) | AQ24: Gennemsnit - kredse | AR24: =AVERAGE(Table1[Gulvvarme antal kredse]) -> 9.714285714 | AT24: pro_12 - median | AU24: =MEDIAN(IF(Table1[Producent]="pro_12",Table1[Gulvvarme kg/m2] )) -> 0.5881768212
B25: Type 4 - 2 plan | C25: pro_11 | D25: 2 plans | E25: Sadel | F25: =IF(Table1[[#This Row],[Type]]="1 plans",1,IF(Table1[[#This Row],[Type]]="2 plans",2,0)) -> 2 | G25: =IF(Table1[[#This Row],[Tag]]="Ensidig hældning",2,IF(Table1[[#This Row],[Tag]]="Fladt",3,IF(Table1[[#This Row],[Tag]]="Sadel",1,0))) -> 1 | H25: 5 | I25: 124 | J25: 102 | K25: =IF(Table1[[#This Row],[Netto]]=" "," ",Table1[[#This Row],[Brutto]]/Table1[[#This Row],[Netto]]) -> 1.215686275 | L25: =(AC25+AD25+Table1[[#This Row],[Kanal - Indtag/afkast]])/I25 -> 0.3161290323 | M25: 2.5 | N25: =Table1[[#This Row],[Emhætte - kanallængde]]+Table1[[#This Row],[Kanal - Ind]]+Table1[[#This Row],[Kanal - Ud]]+Table1[[#This Row],[Kanal - Indtag/afkast]] -> 40.4 | O25: 21 | P25: Ja | Q25: 250 | R25: =12+77+30+85+40+41+32+30+69 -> 416 | S25: =Table1[[#This Row],[Gulvvarme længde]]/Table1[[#This Row],[Netto]] -> 4.078431373 | T25: =IF(Table1[[#This Row],[Gulvvarme - c.afstand]]=200,(Table1[[#This Row],[Gulvvarme længde]]*Gulvvarme!J$9),IF(Table1[[#This Row],[Gulvvarme - c.afstand]]=250,Table1[[#This Row],[Gulvvarme længde]]*Gulvvarme!J$8,Table1[[#This Row],[Gulvvarme længde]]*Gulvvarme!J$10)) -> 35.36 | U25: =Table1[[#This Row],[Gulvvarme kg]]/Table1[[#This Row],[Netto]] -> 0.3466666667 | V25: =IF(Table1[[#This Row],[Gulvvarme - c.afstand]]=250,Table1[[#This Row],[Gulvvarme længde]]/Gulvvarme!I$8,IF(Table1[[#This Row],[Gulvvarme - c.afstand]]=300,Table1[[#This Row],[Gulvvarme længde]]/Gulvvarme!I$10,"")) -> 104 | W25: =Table1[[#This Row],[Gulvvarme m2]]/Table1[[#This Row],[Netto]] -> 1.019607843 | X25: 9 | Y25: 4 | Z25: 3 | AA25: 1 | AB25: 1.2 | AC25: =IF(Konfiguration!B2 = "2-plan",Input!K14,0)+12.5 -> 15.45 | AD25: =IF(Konfiguration!B2 = "2-plan",Input!K14,0)+12.5 -> 15.45 | AE25: 8.3 | AF25: Dantherm HCH5V | AG25: Skab | AH25: 70 | AI25: 380 | AJ25: 20.4 | AQ25: pro_12 - gennemsnit | AR25: =AVERAGEIF(Table1[Producent], "pro_12",Table1[Gulvvarme antal kredse]) -> 12.66666667 | AT25: pro_11 - median | AU25: =MEDIAN(IF(Table1[Producent]="pro_11",Table1[Gulvvarme kg/m2] )) -> 0.3721538945
B26: Bygning 8 | C26: pro_14 | D26: 2 plans | E26: Sadel | F26: =IF(Table1[[#This Row],[Type]]="1 plans",1,IF(Table1[[#This Row],[Type]]="2 plans",2,0)) -> 2 | G26: =IF(Table1[[#This Row],[Tag]]="Ensidig hældning",2,IF(Table1[[#This Row],[Tag]]="Fladt",3,IF(Table1[[#This Row],[Tag]]="Sadel",1,0))) -> 1 | H26: 7 | I26: 209 | J26: 168.35 | K26: =IF(Table1[[#This Row],[Netto]]=" "," ",Table1[[#This Row],[Brutto]]/Table1[[#This Row],[Netto]]) -> 1.241461241 | L26: =(AC26+AD26+Table1[[#This Row],[Kanal - Indtag/afkast]])/I26 -> 0.3198564593 | M26: 2.45 | N26: =Table1[[#This Row],[Emhætte - kanallængde]]+Table1[[#This Row],[Kanal - Ind]]+Table1[[#This Row],[Kanal - Ud]]+Table1[[#This Row],[Kanal - Indtag/afkast]] -> 68.35 | O26: 21 | P26: Ja | R26: =(36+55+44+87+95+43+60) -> 420 | S26: =Table1[[#This Row],[Gulvvarme længde]]/Table1[[#This Row],[Netto]] -> 2.494802495 | T26: =IF(Table1[[#This Row],[Gulvvarme - c.afstand]]=200,(Table1[[#This Row],[Gulvvarme længde]]*Gulvvarme!J$9),IF(Table1[[#This Row],[Gulvvarme - c.afstand]]=250,Table1[[#This Row],[Gulvvarme længde]]*Gulvvarme!J$8,Table1[[#This Row],[Gulvvarme længde]]*Gulvvarme!J$10)) -> 49.14 | U26: =Table1[[#This Row],[Gulvvarme kg]]/Table1[[#This Row],[Netto]] -> 0.2918918919 | V26: =IF(Table1[[#This Row],[Gulvvarme - c.afstand]]=250,Table1[[#This Row],[Gulvvarme længde]]/Gulvvarme!I$8,IF(Table1[[#This Row],[Gulvvarme - c.afstand]]=300,Table1[[#This Row],[Gulvvarme længde]]/Gulvvarme!I$10,"")) ->  | W26: =Table1[[#This Row],[Gulvvarme m2]]/Table1[[#This Row],[Netto]] ->  | Y26: 7 | Z26: 5 | AA26: 1 | AB26: 1.5 | AC26: 31.1 | AD26: 29.55 | AE26: 6.2 | AF26: Nilan CT300LR | AG26: Loft | AH26: 100 | AI26: 400 | AJ26: 24.05 | AQ26: pro_11 - gennemsnit | AR26: =AVERAGEIF(Table1[Producent], "pro_11",Table1[Gulvvarme antal kredse]) -> 7.5 | AT26: 1-plan - median | AU26: =MEDIAN(IF(Table1[Type]="1 plans",Table1[Gulvvarme kg/m2] )) -> 0.3182287522
AS27: Gennemsnit | AT27: =AVERAGEIF(Table1[[Emhætte ]], "1",Table1[Emhætte - kanallængde]) -> 2.602380952 | AW27: 1-plan - gennemsnit | AX27: =AVERAGEIF(Table1[Type], "1 plans",Table1[Gulvvarme antal kredse]) -> 9.833333333 | AZ27: 2-plan - median | BA27: =MEDIAN(IF(Table1[Type]="2 plans",Table1[Gulvvarme kg/m2] )) -> 0.3192792793
AS28: Median | AT28: =MEDIAN(IF(Table1[[Emhætte ]]=1,Table1[Emhætte - kanallængde] )) -> 2.25 | AW28: 2-plan - gennemsnit | AX28: =AVERAGEIF(Table1[Type], "2 plans",Table1[Gulvvarme antal kredse]) -> 9
AS29: 1-plan - gennemsnit | AT29: =AVERAGEIF(Table1[Type], "1 plans",Table1[Emhætte - kanallængde]) -> 2.361363636 | AZ29: Gennemsnit - m2 | BA29: =AVERAGE(Table1[Gulvvarme m2]) -> 148.8419913 | BC29: Ensidig hældning | BD29: Fladt | BE29: Sadel
AS30: 2-plan - gennemsnit | AT30: =AVERAGEIF(Table1[Type], "2 plans",Table1[Emhætte - kanallængde]) -> 1.35 | AW30: Median - kredse | AX30: =MEDIAN(Table1[Gulvvarme antal kredse]) -> 9 | AZ30: pro_12 - gennemsnit | BA30: =AVERAGEIF(Table1[Producent], "pro_12",Table1[Gulvvarme m2]) -> 213.1313131
AS31: 1-plan - median | AT31: =MEDIAN(IF(Table1[Type]="1 plans",Table1[Emhætte - kanallængde] )) -> 2.25 | AW31: pro_12 - median | AX31: =MEDIAN(IF(Table1[Producent]="pro_12",Table1[Gulvvarme antal kredse] )) -> 13 | AZ31: pro_11 - gennemsnit | BA31: =AVERAGEIF(Table1[Producent], "pro_11",Table1[Gulvvarme m2]) -> 100.625
AS32: 2-plan - median | AT32: =MEDIAN(IF(Table1[Type]="2 plans",Table1[Emhætte - kanallængde] )) -> 1.35 | AW32: pro_11 - median | AX32: =MEDIAN(IF(Table1[Producent]="pro_11",Table1[Gulvvarme antal kredse] )) -> 7 | AZ32: 1-plan - gennemsnit | BA32: =AVERAGEIF(Table1[Type], "1 plans",Table1[Gulvvarme m2]) -> 156.3156566
AW33: 1-plan - median | AX33: =MEDIAN(IF(Table1[Type]="1 plans",Table1[Gulvvarme antal kredse] )) -> 0 | AZ33: 2-plan - gennemsnit | BA33: =AVERAGEIF(Table1[Type], "2 plans",Table1[Gulvvarme m2]) -> 104
AW34: 2-plan - median | AX34: =MEDIAN(IF(Table1[Type]="2 plans",Table1[Gulvvarme antal kredse] )) -> 4.5
AS35: Aggregat (max. Luftmængde) | AZ35: Median - m2 | BA35: =MEDIAN(Table1[Gulvvarme m2]) -> 105
AZ36: pro_12 - median | BA36: =MEDIAN(IF(Table1[Producent]="pro_12",Table1[Gulvvarme m2] )) -> 210.5757576
AZ37: pro_11 - median | BA37: =MEDIAN(IF(Table1[Producent]="pro_11",Table1[Gulvvarme m2] )) -> 104.25
AS38: Gennemsnit | AT38: =AVERAGE(Table1[Aggregat - luftmax]) -> 343.3333333 | AZ38: 1-plan - median | BA38: =MEDIAN(IF(Table1[Type]="1 plans",Table1[Gulvvarme m2] )) -> 151.8939394
AS39: Median | AT39: =MEDIAN(Table1[Aggregat - luftmax]) -> 340 | AZ39: 2-plan - median | BA39: =MEDIAN(IF(Table1[Type]="2 plans",Table1[Gulvvarme m2] )) -> 104
AS40: 1-plan - gennemsnit | AT40: =AVERAGEIF(Table1[Type], "1 plans",Table1[Aggregat - luftmax]) -> 339.0909091
AS41: 2-plan - gennemsnit | AT41: =AVERAGEIF(Table1[Type], "2 plans",Table1[Aggregat - luftmax]) -> 390 | AZ41: Gennemsnit - m2/m2 | BA41: =AVERAGE(Table1[Gulvvarme m2/m2]) -> 
AS42: 1-plan - median | AT42: =MEDIAN(IF(Table1[Type]="1 plans",Table1[Aggregat - luftmax] )) -> 295 | AZ42: pro_12 - gennemsnit | BA42: =AVERAGEIF(Table1[Producent], "pro_12",Table1[Gulvvarme m2/m2]) -> 1.532824064
AS43: 2-plan - median | AT43: =MEDIAN(IF(Table1[Type]="2 plans",Table1[Aggregat - luftmax] )) -> 390 | AZ43: pro_11 - gennemsnit | BA43: =AVERAGEIF(Table1[Producent], "pro_11",Table1[Gulvvarme m2/m2]) -> 1.08744351
AZ44: 1-plan - gennemsnit | BA44: =AVERAGEIF(Table1[Type], "1 plans",Table1[Gulvvarme m2/m2]) -> 
AZ45: 2-plan - gennemsnit | BA45: =AVERAGEIF(Table1[Type], "2 plans",Table1[Gulvvarme m2/m2]) -> 
AS46: Bøjninger (antal)
AZ47: Median - m2/m2 | BA47: =MEDIAN(Table1[Gulvvarme m2/m2]) -> 
AZ48: pro_12 - median | BA48: =MEDIAN(IF(Table1[Producent]="pro_12",Table1[Gulvvarme m2/m2] )) -> 1.52337949
AS49: Gennemsnit | AT49: =AVERAGE(Table1[Antal bøjninger]) -> 21.45833333 | AZ49: pro_11 - median | BA49: =MEDIAN(IF(Table1[Producent]="pro_11",Table1[Gulvvarme m2/m2] )) -> 1.094570278
AS50: Median | AT50: =MEDIAN(Table1[Antal bøjninger]) -> 22 | AZ50: 1-plan - median | BA50: =MEDIAN(IF(Table1[Type]="1 plans",Table1[Gulvvarme m2/m2] )) -> 
AS51: 1-plan - gennemsnit | AT51: =AVERAGEIF(Table1[Type], "1 plans",Table1[Antal bøjninger]) -> 21.5 | AZ51: 2-plan - median | BA51: =MEDIAN(IF(Table1[Type]="2 plans",Table1[Gulvvarme m2/m2] )) -> 
AS52: 2-plan - gennemsnit | AT52: =AVERAGEIF(Table1[Type], "2 plans",Table1[Antal bøjninger]) -> 21 | BL52: Ensidig | BM52: Fladt | BN52: Sadel | BO52: Indtastet
AS53: 1-plan - median | AT53: =MEDIAN(IF(Table1[Type]="1 plans",Table1[Antal bøjninger] )) -> 22 | BI53: I tilfælde af kvdm lighed | BL53: =VLOOKUP(BJ60,BB60:BE110,2,FALSE) -> 15.271 | BM53: =VLOOKUP(BJ60,BB60:BE110,3,FALSE) -> 50.2305 | BN53: =VLOOKUP(BJ60,BB60:BE110,4,FALSE) -> 49.4844 | BO53: =VLOOKUP(BL60,BB60:BF110,5,FALSE) -> 46.38307005
AS54: 2-plan - median | AT54: =MEDIAN(IF(Table1[Type]="2 plans",Table1[Antal bøjninger] )) -> 21
AS57: Tagtype - Kanallængde
BB59: M2 | BC59: Ensidig hældning | BD59: Fladt | BE59: Sadel | BF59: Indtastet | BJ59: Tagtype | BL59: Hustype | BN59: Forskel | BO59: Tilføjelse
AS60: Gennemsnit - Sadel | AT60: =AVERAGEIF(Table1[Tag], "Sadel",Table1[Kanallængde pr. kvdm]) -> 0.3498065324 | BB60: 50 | BC60: =1.0546*BB60-127.1 -> -74.37 | BD60: =0.2445*BB60+17.223 -> 29.448 | BE60: =0.3335*BB60+4.4619 -> 21.1369 | BF60: =$AN$19*BB60 -> 17.17891484 | BI60: x | BJ60: =Konfiguration!B4 -> 135 | BL60: =Konfiguration!B4 -> 135
AS61: Median - Sadel | AT61: =MEDIAN(IF(Table1[Tag]="Sadel",Table1[Kanallængde pr. kvdm] )) -> 0.3445135883 | BB61: 55 | BC61: =1.0546*BB61-127.1 -> -69.097 | BD61: =0.2445*BB61+17.223 -> 30.6705 | BE61: =0.3335*BB61+4.4619 -> 22.8044 | BF61: =$AN$19*BB61 -> 18.89680632 | BI61: x1 | BJ61: =_xlfn.XLOOKUP(BJ60,BB60:BB110,BB60:BB110,,1,1) -> 135 | BL61: =_xlfn.XLOOKUP(BL60,BB60:BB110,BB60:BB110,,1,1) -> 135
AS62: Gennemsnit - Fladt | AT62: =AVERAGEIF(Table1[Tag], "Fladt",Table1[Kanallængde pr. kvdm]) -> 0.3362922262 | BB62: 60 | BC62: -63.824 | BD62: 31.893 | BE62: 24.4719 | BF62: 20.6146978 | BI62: x2 | BJ62: =_xlfn.XLOOKUP(BJ60,BB60:BB110,BB60:BB110,,-1,1) -> 135 | BL62: =_xlfn.XLOOKUP(BL60,BB60:BB110,BB60:BB110,,-1,1) -> 135
AS63: Median - Fladt | AT63: =MEDIAN(IF(Table1[Tag]="Fladt",Table1[Kanallængde pr. kvdm] )) -> 0.3434065934 | BB63: 65 | BC63: -58.551 | BD63: 33.1155 | BE63: 26.1394 | BF63: 22.33258929 | BI63: y1 | BJ63: =IF(Konfiguration!B3="Sadeltag",_xlfn.XLOOKUP('Data fra producenter'!BJ60,'Data fra producenter'!BB60:BB110,'Data fra producenter'!BE60:BE110,,-1,1),IF(Konfiguration!B3="Fladt tag",_xlfn.XLOOKUP('Data fra producenter'!BJ60,'Data fra producenter'!BB60:BB110,'Data fra producenter'!BD60:BD110,,-1,1),IF(Konfiguration!B3="Ensidig hældning",_xlfn.XLOOKUP('Data fra producenter'!BJ60,'Data fra producenter'!BB60:BB110,'Data fra producenter'!BC60:BC110,,-1,1),0))) -> 49.4844 | BL63: =_xlfn.XLOOKUP(BL60,BB60:BB110,BF60:BF110,,-1,1) -> 46.38307005
AS64: Gennemsnit - Ensidig | AT64: =AVERAGEIF(Table1[Tag], "Ensidig hældning",Table1[Kanallængde pr. kvdm]) -> 0.3002067795 | BB64: 70 | BC64: -53.278 | BD64: 34.338 | BE64: 27.8069 | BF64: 24.05048077 | BI64: y2 | BJ64: =IF(Konfiguration!B3="Sadeltag",_xlfn.XLOOKUP('Data fra producenter'!BJ60,'Data fra producenter'!BB60:BB110,'Data fra producenter'!BE60:BE110,,1,1),IF(Konfiguration!B3="Fladt tag",_xlfn.XLOOKUP('Data fra producenter'!BJ60,'Data fra producenter'!BB60:BB110,'Data fra producenter'!BD60:BD110,,1,1),IF(Konfiguration!B3="Ensidig hældning",_xlfn.XLOOKUP('Data fra producenter'!BJ60,'Data fra producenter'!BB60:BB110,'Data fra producenter'!BC60:BC110,,1,1),0))) -> 49.4844 | BL64: =_xlfn.XLOOKUP(BL61,BB61:BB111,BF61:BF111,,1,1) -> 46.38307005
AS65: Median - Ensidig | AT65: =MEDIAN(IF(Table1[Tag]="Ensidig hældning",Table1[Kanallængde pr. kvdm] )) -> 0.2797619048 | BB65: 75 | BC65: -48.005 | BD65: 35.5605 | BE65: 29.4744 | BF65: 25.76837225
BB66: 80 | BC66: -42.732 | BD66: 36.783 | BE66: 31.1419 | BF66: 27.48626374 | BI66: y | BJ66: =IF(BI67=FALSE,FORECAST(BJ60,BJ63:BJ64,BJ61:BJ62),(IF(Konfiguration!B3="Ensidig hældning",'Data fra producenter'!BL53,IF(Konfiguration!B3="Fladt tag",'Data fra producenter'!BM53,IF(Konfiguration!B3="Sadeltag",'Data fra producenter'!BN53,))))) -> 49.4844 | BL66: =IF(BI67=FALSE,FORECAST(BL60,BL63:BL64,BL61:BL62),BO53) -> 46.38307005 | BN66: =BL66-BJ66 -> -3.101329945 | BO66: =IF(BN66<0,IF(ABS(BN66)>5,-ABS(BN66/2),-ABS(BN66)),IF(ABS(BN66>5),ABS(BN66)/2,ABS(BN66))) -> -3.101329945 | BP66: =IF(ABS(BO66)>5,5,BO66) -> -3.101329945
BB67: 85 | BC67: -37.459 | BD67: 38.0055 | BE67: 32.8094 | BF67: 29.20415522 | BI67: =COUNTIF(BB60:BB110,BJ60)>0 -> TRUE
BB68: 90 | BC68: -32.186 | BD68: 39.228 | BE68: 34.4769 | BF68: 30.9220467
BB69: 95 | BC69: -26.913 | BD69: 40.4505 | BE69: 36.1444 | BF69: 32.63993819
BB70: 100 | BC70: -21.64 | BD70: 41.673 | BE70: 37.8119 | BF70: 34.35782967
BB71: 105 | BC71: -16.367 | BD71: 42.8955 | BE71: 39.4794 | BF71: 36.07572115
BB72: 110 | BC72: -11.094 | BD72: 44.118 | BE72: 41.1469 | BF72: 37.79361264
BB73: 115 | BC73: -5.821 | BD73: 45.3405 | BE73: 42.8144 | BF73: 39.51150412
BB74: 120 | BC74: -0.548 | BD74: 46.563 | BE74: 44.4819 | BF74: 41.2293956
BB75: 125 | BC75: 4.725 | BD75: 47.7855 | BE75: 46.1494 | BF75: 42.94728709
BB76: 130 | BC76: 9.998 | BD76: 49.008 | BE76: 47.8169 | BF76: 44.66517857
BB77: 135 | BC77: 15.271 | BD77: 50.2305 | BE77: 49.4844 | BF77: 46.38307005
BB78: 140 | BC78: 20.544 | BD78: 51.453 | BE78: 51.1519 | BF78: 48.10096154
BB79: 145 | BC79: 25.817 | BD79: 52.6755 | BE79: 52.8194 | BF79: 49.81885302
BB80: 150 | BC80: 31.09 | BD80: 53.898 | BE80: 54.4869 | BF80: 51.53674451
BB81: 155 | BC81: 36.363 | BD81: 55.1205 | BE81: 56.1544 | BF81: 53.25463599
BB82: 160 | BC82: 41.636 | BD82: 56.343 | BE82: 57.8219 | BF82: 54.97252747
BB83: 165 | BC83: 46.909 | BD83: 57.5655 | BE83: 59.4894 | BF83: 56.69041896
BB84: 170 | BC84: 52.182 | BD84: 58.788 | BE84: 61.1569 | BF84: 58.40831044
BB85: 175 | BC85: 57.455 | BD85: 60.0105 | BE85: 62.8244 | BF85: 60.12620192
BB86: 180 | BC86: 62.728 | BD86: 61.233 | BE86: 64.4919 | BF86: 61.84409341
BB87: 185 | BC87: 68.001 | BD87: 62.4555 | BE87: 66.1594 | BF87: 63.56198489
BB88: 190 | BC88: 73.274 | BD88: 63.678 | BE88: 67.8269 | BF88: 65.27987637
BB89: 195 | BC89: 78.547 | BD89: 64.9005 | BE89: 69.4944 | BF89: 66.99776786
BB90: 200 | BC90: =1.0546*BB90-127.1 -> 83.82 | BD90: 66.123 | BE90: 71.1619 | BF90: 68.71565934
BB91: 205 | BC91: 89.093 | BD91: 67.3455 | BE91: 72.8294 | BF91: 70.43355082
BB92: 210 | BC92: 94.366 | BD92: 68.568 | BE92: 74.4969 | BF92: 72.15144231
BB93: 215 | BC93: 99.639 | BD93: 69.7905 | BE93: 76.1644 | BF93: 73.86933379
BB94: 220 | BC94: 104.912 | BD94: 71.013 | BE94: 77.8319 | BF94: 75.58722527
BB95: 225 | BC95: 110.185 | BD95: 72.2355 | BE95: 79.4994 | BF95: 77.30511676
BB96: 230 | BC96: 115.458 | BD96: 73.458 | BE96: 81.1669 | BF96: 79.02300824
BB97: 235 | BC97: 120.731 | BD97: 74.6805 | BE97: 82.8344 | BF97: 80.74089973
BB98: 240 | BC98: 126.004 | BD98: 75.903 | BE98: 84.5019 | BF98: 82.45879121
BB99: 245 | BC99: 131.277 | BD99: 77.1255 | BE99: 86.1694 | BF99: 84.17668269
BB100: 250 | BC100: 136.55 | BD100: 78.348 | BE100: 87.8369 | BF100: 85.89457418
BB101: 255 | BC101: 141.823 | BD101: 79.5705 | BE101: 89.5044 | BF101: 87.61246566
BB102: 260 | BC102: 147.096 | BD102: 80.793 | BE102: 91.1719 | BF102: 89.33035714
BB103: 265 | BC103: 152.369 | BD103: 82.0155 | BE103: 92.8394 | BF103: 91.04824863
BB104: 270 | BC104: 157.642 | BD104: 83.238 | BE104: 94.5069 | BF104: 92.76614011
BB105: 275 | BC105: 162.915 | BD105: 84.4605 | BE105: 96.1744 | BF105: 94.48403159
BB106: 280 | BC106: 168.188 | BD106: 85.683 | BE106: 97.8419 | BF106: 96.20192308
BB107: 285 | BC107: 173.461 | BD107: 86.9055 | BE107: 99.5094 | BF107: 97.91981456
BB108: 290 | BC108: 178.734 | BD108: 88.128 | BE108: 101.1769 | BF108: 99.63770604
BB109: 295 | BC109: 184.007 | BD109: 89.3505 | BE109: 102.8444 | BF109: 101.3555975
BB110: 300 | BC110: 189.28 | BD110: 90.573 | BE110: 104.5119 | BF110: 103.073489

Sheet Regression (hidden)
A1: SUMMARY OUTPUT
A3: Regression Statistics
A4: Multiple R | B4: 0.8070677263
A5: R Square | B5: 0.6513583148
A6: Adjusted R Square | B6: 0.5545134022
A7: Standard Error | B7: 7.68956331
A8: Observations | B8: 24
A10: ANOVA
B11: df | C11: SS | D11: MS | E11: F | F11: Significance F
A12: Regression | B12: 5 | C12: 1988.458394 | D12: 397.6916787 | E12: 6.725787629 | F12: 0.001068016751
A13: Residual | B13: 18 | C13: 1064.32891 | D13: 59.1293839
A14: Total | B14: 23 | C14: 3052.787304
B16: Coefficients | C16: Standard Error | D16: t Stat | E16: P-value | F16: Lower 95% | G16: Upper 95% | H16: Lower 95,0% | I16: Upper 95,0%
A17: Intercept | B17: 17.31522689 | C17: 11.57382107 | D17: 1.496068307 | E17: 0.1519637643 | F17: -7.000468883 | G17: 41.63092267 | H17: -7.000468883 | I17: 41.63092267
A18: Type-værdi | B18: -8.983565043 | C18: 6.553584511 | D18: -1.37078648 | E18: 0.1872935599 | F18: -22.75213518 | G18: 4.785005099 | H18: -22.75213518 | I18: 4.785005099
A19: Tag-værdi | B19: -2.201093665 | C19: 2.210616168 | D19: -0.995692376 | E19: 0.33259735 | F19: -6.845425896 | G19: 2.443238566 | H19: -6.845425896 | I19: 2.443238566
A20: Antal værelser | B20: -0.8934337939 | C20: 2.896210528 | D20: -0.3084837187 | E20: 0.7612559209 | F20: -6.978146325 | G20: 5.191278737 | H20: -6.978146325 | I20: 5.191278737
A21: Brutto | B21: 0.267469171 | C21: 0.1726892364 | D21: 1.548846799 | E21: 0.1388212418 | F21: -0.09533745191 | G21: 0.6302757939 | H21: -0.09533745191 | I21: 0.6302757939
A22: Netto | B22: 0.1117439072 | C22: 0.2342437853 | D22: 0.477041075 | E22: 0.6390733763 | F22: -0.3803840242 | G22: 0.6038718385 | H22: -0.3803840242 | I22: 0.6038718385
M23: Kanallængde fra regression: | O23: =(N25*(-8.98357))+(N26*(-2.20109))+(N27*(-0.89343))+(N28*(0.267469))+(N29*(0.111744))+N30 -> 40.745295 | R23: Antal bøjninger: | T23: =(N25*(-0.94526))+(N26*(0.099158))+(N27*(1.370884))+(N28*(0.000762))+(N29*(-0.0136))+S30 -> 21.250202
M25: Type-værdi | N25: =IF(Konfiguration!B2="1-plan",1,IF(Konfiguration!B2="2-plan",2,0)) -> 2
M26: Tag-værdi | N26: =IF(Konfiguration!B3="Ensidig hældning",2,IF(Konfiguration!B3="Fladt tag",3,IF(Konfiguration!B3="Sadeltag",1,0))) -> 1
M27: Antal værelser | N27: =Konfiguration!B7 -> 6
M28: Brutto-areal | N28: =Konfiguration!B4 -> 135
M29: Netto-areal | N29: =Konfiguration!B5 -> 115
M30: Intercept | N30: 17.31523 | R30: Intercept | S30: 16.27739

Sheet Regression - bøjninger (hidden)
A1: SUMMARY OUTPUT
A3: Regression Statistics
A4: Multiple R | B4: 0.6801643532
A5: R Square | B5: 0.4626235473
A6: Adjusted R Square | B6: 0.3133523105
A7: Standard Error | B7: 1.638791731
A8: Observations | B8: 24
A10: ANOVA
B11: df | C11: SS | D11: MS | E11: F | F11: Significance F
A12: Regression | B12: 5 | C12: 41.61684328 | D12: 8.323368655 | E12: 3.09921427 | F12: 0.03431437584
A13: Residual | B13: 18 | C13: 48.34149006 | D13: 2.685638336
A14: Total | B14: 23 | C14: 89.95833333
B16: Coefficients | C16: Standard Error | D16: t Stat | E16: P-value | F16: Lower 95% | G16: Upper 95% | H16: Lower 95,0% | I16: Upper 95,0%
A17: Intercept | B17: 16.277386 | C17: 2.466600702 | D17: 6.599116747 | E17: 3.383058103e-06 | F17: 11.09525022 | G17: 21.45952178 | H17: 11.09525022 | I17: 21.45952178
A18: Type-værdi | B18: -0.9452574506 | C18: 1.396693111 | D18: -0.6767824965 | E18: 0.5071488416 | F18: -3.879600791 | G18: 1.98908589 | H18: -3.879600791 | I18: 1.98908589
A19: Tag-værdi | B19: 0.0991575794 | C19: 0.4711242174 | D19: 0.2104701387 | E19: 0.8356649217 | F19: -0.8906376726 | G19: 1.088952831 | H19: -0.8906376726 | I19: 1.088952831
A20: Antal værelser | B20: 1.370883937 | C20: 0.6172373738 | D20: 2.220999563 | E20: 0.03942101012 | F20: 0.07411633467 | G20: 2.66765154 | H20: 0.07411633467 | I20: 2.66765154
A21: Brutto | B21: 0.0007619320707 | C21: 0.03680335036 | D21: 0.020702791 | E21: 0.9837105119 | F21: -0.07655903786 | G21: 0.078082902 | H21: -0.07655903786 | I21: 0.078082902
A22: Netto | B22: -0.01359862396 | C22: 0.04992179176 | D22: -0.2723985555 | E22: 0.7884157768 | F22: -0.1184804166 | G22: 0.09128316864 | H22: -0.1184804166 | I22: 0.09128316864

Sheet Drop-down (hidden)
A1: Hustype | B1: Antal | C1: Værelser | D1: Tagtype | E1: Bool
A2: 1-plan | B2: 0 | C2: 0 | D2: Sadeltag | E2: Ja
A3: 2-plan | B3: 1 | C3: 1 | D3: Fladt tag | E3: Nej
B4: 2 | C4: 2 | D4: Ensidig hældning
B5: 3 | C5: 3
B6: 4 | C6: 4
B7: 5 | C7: 5
B8: 6 | C8: 6
B9: 7 | C9: 7
B10: 8 | C10: 8
B11: 9 | C11: 9
B12: 10 | C12: 10
